Transaction Date,Cost Centre,Cost Centre (T),Merchant Name, Gross Amount ,Account,Account (T),MCC,MCC Description
03/04/2023,MB30,Planning Development Control,Land Registry Ecom Ccc, 6.00 ,J46,Other Expenses,9399,Government Services
03/04/2023,MJ20,Civic & Mayoral Costs,Ascot Cars, 40.00 ,G40,Staff Public Transport,4121,Taxi Services
03/04/2023,MJ20,Civic & Mayoral Costs,Ascot Cars, 40.00 ,G40,Staff Public Transport,4121,Taxi Services
03/04/2023,LB18,Libraries-Maidenhead,Sp Caratech, 149.97 ,H10,Equipment Purchase,5085,Other Industrial Supplies
04/04/2023,LR10,Braywick Nature Centre,Www.Screwfix.Com, 17.99 ,H10,Equipment Purchase,5211,Lumber & Building Materials Stores
04/04/2023,AK81,Postage - Rechargeable,Post Office Counter, 24.75 ,H70,Postage,9402,Postal Services - Government Only
04/04/2023,AK81,Postage - Rechargeable,Post Office Counter, 94.24 ,H70,Postage,9402,Postal Services - Government Only
06/04/2023,AK81,Postage - Rechargeable,Post Office Counter, 18.95 ,H70,Postage,9402,Postal Services - Government Only
06/04/2023,MA74,Digital Printing IGEN,Sp Springboard, 158.26 ,H22,Materials,5691,Mens and Womens Clothing Stores
06/04/2023,MT10,Legal Services,Www.Barprofessionaltra, 426.00 ,J60,Professional Fees,8111,"Attorneys, Legal Services"
07/04/2023,MJ20,Civic & Mayoral Costs,Ascot Cars, 35.00 ,G40,Staff Public Transport,4121,Taxi Services
07/04/2023,MJ20,Civic & Mayoral Costs,Ascot Cars, 50.00 ,G40,Staff Public Transport,4121,Taxi Services
10/04/2023,EC26,"Information, Advice and Support Service",Eig*constantcontact.Com, 18.00 ,J11,Corporate Subscriptions,5968,Direct Marketing Continuity Subscription Merchants
11/04/2023,MB30,Planning Development Control,Land Registry Ecom Ccc, 6.00 ,J46,Other Expenses,9399,Government Services
11/04/2023,LR10,Braywick Nature Centre,Www.Screwfix.Com, 11.79 ,J46,Other Expenses,5211,Lumber & Building Materials Stores
11/04/2023,LR10,Braywick Nature Centre,Wp-Pakatak Ltd, 12.00 ,H10,Equipment Purchase,5732,Electronic Sales
12/04/2023,MH41,L & RS F2F Libraries,B & Q 1262, 37.28 ,H10,Equipment Purchase,5200,Home Supply Warehouse Stores
12/04/2023,AK81,Postage - Rechargeable,Post Office Counter, 44.39 ,H70,Postage,9402,Postal Services - Government Only
12/04/2023,LR10,Braywick Nature Centre,Amznmktplace, 44.95 ,H10,Equipment Purchase,5999,Miscellaneous and Specialty Retail Stores
12/04/2023,MJ20,Civic & Mayoral Costs,Beaconsfield Sstp, 45.90 ,G40,Staff Public Transport,4112,Passenger Railways
13/04/2023,MJ40,Elections -District,Wh Smith Maidenhead, 14.99 ,H10,Equipment Purchase,5994,News Dealers and Newsstands
13/04/2023,LR10,Braywick Nature Centre,Toolstation Uk, 49.98 ,H10,Equipment Purchase,5251,Hardware Stores
13/04/2023,LR10,Braywick Nature Centre,Travis Perkins, 96.38 ,J46,Other Expenses,5211,Lumber & Building Materials Stores
14/04/2023,MB30,Planning Development Control,Land Registry Ecom Ccc, 6.00 ,J46,Other Expenses,9399,Government Services
14/04/2023,LR10,Braywick Nature Centre,Www.Screwfix.Com, 26.29 ,H10,Equipment Purchase,5211,Lumber & Building Materials Stores
14/04/2023,AK81,Postage - Rechargeable,Post Office Self Serve, 38.10 ,H70,Postage,9402,Postal Services - Government Only
14/04/2023,ML15,Public Relations,Contstant Contact, 169.00 ,A77,Professional Subscriptions,5968,Direct Marketing Continuity Subscription Merchants
17/04/2023,LB18,Libraries-Maidenhead,Amazon Music*d91yf4bx5, 8.99 ,H80,Communication,5735,Record Shops
17/04/2023,SVHM,Homelessness,Travelodge Gb0000, 78.52 ,K77,Client Temporary Accommodation,3615,Travelodge
17/04/2023,PG46,Parking Permits and Vouchers,Sp Herman Miller Uk," 1,180.80 ",H10,Equipment Purchase,5712,"Equipment, Furniture, and Home Furnishings Stores "
18/04/2023,AK81,Postage - Rechargeable,Post Office Counter, 47.09 ,H70,Postage,9402,Postal Services - Government Only
18/04/2023,AJ22,S E Library Management System,Se Online Web, 71.10 ,G40,Staff Public Transport,4112,Passenger Railways
18/04/2023,MJ40,Elections -District,Www.Ukwristbands.Com, 115.34 ,H10,Equipment Purchase,5699,Miscellaneous Accessory and Apparel Stores
18/04/2023,MA42,Business Development,Www.Groupon.Co.Uk, 339.00 ,H46,Books & Publications,7278,"Shopping Clubs, Services"
18/04/2023,SVRT,Disabled Facilites Grant (Revenue),Hurley Riverside P, 550.00 ,F61,Service Charges,7033,Campgrounds and Trailer Parks
18/04/2023,MA74,Digital Printing IGEN,Stationeryu," 1,391.44 ",H45,Stationery,5943,"Office, School Supply, and Stationery Stores"
19/04/2023,AK81,Postage - Rechargeable,Post Office Counter, 11.65 ,H70,Postage,9402,Postal Services - Government Only
19/04/2023,AJ22,S E Library Management System,Se Trains Onboard, 12.80 ,G40,Staff Public Transport,4112,Passenger Railways
19/04/2023,LR10,Braywick Nature Centre,E Pardoe & Son, 39.50 ,J46,Other Expenses,7251,"Hat Cleaning Shops, Shoe Repair Shops, Shoe Shine "
19/04/2023,LT80,Guildhall-Meetings & Events,Marks&spencer Plc, 60.60 ,H31,Catering (non-taxable benefit),5411,Grocery Stores and Supermarkets
19/04/2023,MC36,Pensions Administration,Gwr Maidenhead To, 87.80 ,G39,Client Public Transport,4112,Passenger Railways
19/04/2023,LT80,Guildhall-Meetings & Events,Laithwaites Wine, 100.00 ,H30,Catering (taxable benefit),5921,"Package Stores, Beer, Wine, Liquor"
19/04/2023,MJ40,Elections -District,Www.Nisbets.Com, 125.80 ,H31,Catering (non-taxable benefit),5964,Direct Marketing Catalog Merchants
19/04/2023,MB01,Centralised Stationery,Stationeryu, 205.57 ,H45,Stationery,5943,"Office, School Supply, and Stationery Stores"
19/04/2023,LT80,Guildhall-Meetings & Events,Laithwaites Wine, 840.20 ,H30,Catering (taxable benefit),5921,"Package Stores, Beer, Wine, Liquor"
20/04/2023,EC26,"Information, Advice and Support Service",Sainsburys S/mkts, 1.55 ,H35,Refreshments,5411,Grocery Stores and Supermarkets
20/04/2023,HE01,"MD/Strategic Director A,C & H",Amznmktplace, 27.98 ,H94,IT Consumables,5999,Miscellaneous and Specialty Retail Stores
20/04/2023,LR10,Braywick Nature Centre,Homebase Ltd, 40.00 ,J46,Other Expenses,5200,Home Supply Warehouse Stores
21/04/2023,MB30,Planning Development Control,Land Registry Ecom Ccc, 6.00 ,J46,Other Expenses,9399,Government Services
21/04/2023,AK81,Postage - Rechargeable,Post Office Counter, 36.00 ,H70,Postage,9402,Postal Services - Government Only
21/04/2023,LB18,Libraries-Maidenhead,Ebay O*16-09966-19810, 51.99 ,H10,Equipment Purchase,5311,Department Stores
21/04/2023,LB03,Libraries-Service Promotion,Ebay O*26-09961-96769, 55.80 ,J47,Events & Activities,5311,Department Stores
21/04/2023,SFRG,Social Fund Reform Grant,Www.Argos.Co.Uk, 123.95 ,H16,Furniture,5311,Department Stores
21/04/2023,MJ40,Elections -District,Booker Ltd - 38603524, 146.85 ,H31,Catering (non-taxable benefit),5411,Grocery Stores and Supermarkets
23/04/2023,MJ40,Elections -District,Amznmktplace, 83.30 ,H10,Equipment Purchase,5999,Miscellaneous and Specialty Retail Stores
23/04/2023,MJ40,Elections -District,Amznmktplace, 107.94 ,H10,Equipment Purchase,5999,Miscellaneous and Specialty Retail Stores
23/04/2023,MJ40,Elections -District,Premier Inn, 143.99 ,J46,Other Expenses,3811,Premier Inn
24/04/2023,MJ40,Elections -District,Amz*amazon.Co.Uk,-20.95 ,H10,Equipment Purchase,5999,Miscellaneous and Specialty Retail Stores
24/04/2023,LB18,Libraries-Maidenhead,Amazon Music,-8.99 ,H80,Communication,5735,Record Shops
24/04/2023,MJ40,Elections -District,Sainsburys S/mkts, 24.50 ,H31,Catering (non-taxable benefit),5411,Grocery Stores and Supermarkets
24/04/2023,MJ40,Elections -District,Booker Ltd - 38603524, 64.58 ,H30,Catering (taxable benefit),5411,Grocery Stores and Supermarkets
24/04/2023,SVHM,Homelessness,Travelodge Gb0000, 90.76 ,K77,Client Temporary Accommodation,3615,Travelodge
24/04/2023,MA51,Democratic Services,Zoom.Us 888-799-9666, 116.94 ,H92,Software,4814,Telecommunication Services
24/04/2023,MJ40,Elections -District,Booker Ltd - 38603524, 777.08 ,H30,Catering (taxable benefit),5411,Grocery Stores and Supermarkets
25/04/2023,MJ40,Elections -District,Amznmktplace,-44.97 ,H10,Equipment Purchase,5999,Miscellaneous and Specialty Retail Stores
25/04/2023,MC36,Pensions Administration,Gwr Maidenhead To, 9.20 ,G39,Client Public Transport,4112,Passenger Railways
25/04/2023,LB18,Libraries-Maidenhead,Amznmktplace, 42.76 ,H10,Equipment Purchase,5999,Miscellaneous and Specialty Retail Stores
25/04/2023,AK81,Postage - Rechargeable,Post Office Counter, 53.25 ,H70,Postage,9402,Postal Services - Government Only
25/04/2023,LB18,Libraries-Maidenhead,Amazon Prime*ym4wx24j5, 95.00 ,J46,Other Expenses,5968,Direct Marketing Continuity Subscription Merchants
25/04/2023,LT80,Guildhall-Meetings & Events,Laithwaites Wine, 263.75 ,H30,Catering (taxable benefit),5921,"Package Stores, Beer, Wine, Liquor"
25/04/2023,LT80,Guildhall-Meetings & Events,Laithwaites Wine, 263.75 ,H30,Catering (taxable benefit),5921,"Package Stores, Beer, Wine, Liquor"
25/04/2023,HE01,"MD/Strategic Director A,C & H",Www.Local.Gov.Uk, 667.08 ,J20,Conference Fees,7399,Other Business Services
25/04/2023,HF05,"Serv Leader: Strategy,Commissioning & Performance",Www.Local.Gov.Uk, 667.08 ,J20,Conference Fees,7399,Other Business Services
25/04/2023,SVHM,Homelessness,Travelodge Gb0000, 732.25 ,K77,Client Temporary Accommodation,3615,Travelodge
26/04/2023,MB30,Planning Development Control,Land Registry Ecom Ccc, 6.00 ,J46,Other Expenses,9399,Government Services
26/04/2023,MB30,Planning Development Control,Land Registry Ecom Ccc, 6.00 ,J46,Other Expenses,9399,Government Services
26/04/2023,MJ40,Elections -District,Amazon.Co.Uk*9x6ea4ct5, 23.85 ,H10,Equipment Purchase,5969,Other Direct Marketing-Other Direct Marketers
26/04/2023,MA69,Facilities Management,Www.Screwfix.Com, 160.31 ,H10,Equipment Purchase,5211,Lumber & Building Materials Stores
27/04/2023,MB01,Centralised Stationery,Theworks, 9.00 ,H45,Stationery,5310,Discount Stores
27/04/2023,MA69,Facilities Management,Screwfix Dir Ltd, 44.91 ,H10,Equipment Purchase,5211,Lumber & Building Materials Stores
27/04/2023,AK81,Postage - Rechargeable,Post Office Counter, 45.40 ,H70,Postage,9402,Postal Services - Government Only
27/04/2023,MA69,Facilities Management,Www.Screwfix.Com, 74.41 ,H10,Equipment Purchase,5211,Lumber & Building Materials Stores
28/04/2023,MJ40,Elections -District,Www.Argos.Co.Uk, 220.00 ,H10,Equipment Purchase,5311,Department Stores
28/04/2023,NA11,Town Hall- Operations,Homebase Ltd, 405.00 ,H10,Equipment Purchase,5200,Home Supply Warehouse Stores
28/04/2023,HE01,"MD/Strategic Director A,C & H",Premier Inn, 620.00 ,J20,Conference Fees,3811,Premier Inn
01/05/2023,ML15,Public Relations,Axate, 2.00 ,A77,Professional Subscriptions,5968,Direct Marketing Continuity Subscription Merchants
01/05/2023,EC26,"Information, Advice and Support Service",Patreon* Membership, 4.82 ,J11,Corporate Subscriptions,5815,"Digital Goods - Media, Books, Movies, Music"
01/05/2023,MJ40,Elections -District,Booker Ltd - 38603524, 271.18 ,H31,Catering (non-taxable benefit),5411,Grocery Stores and Supermarkets
01/05/2023,MJ40,Elections -District,Costco Wholesale #114, 287.41 ,H30,Catering (taxable benefit),7278,"Shopping Clubs, Services"
02/05/2023,MB30,Planning Development Control,Land Registry Ecom Ccc,6.00,J46,Other Expenses,9399,Government Services
02/05/2023,EC26,"Information, Advice and Support Service",Amazon.Co.Uk*9i9x69e05,18.74,H45,Stationery,5969,Other Direct Marketing-Other Direct Marketers
02/05/2023,EC26,"Information, Advice and Support Service",Vistaprint,26.91,E29,Publicity & Marketing,7399,Other Business Services
02/05/2023,MJ40,Elections -District,Wilko.Com,114.00,H10,Equipment Purchase,5399,Miscellaneous General Merchandise
02/05/2023,MJ40,Elections -District,Amznmktplace,214.98,H10,Equipment Purchase,5999,Miscellaneous and Specialty Retail Stores
02/05/2023,MT10,Legal Services,Llg Enterprises Ltd,246.00,A70,Training - Non-Taxable Benefit,8249,"Schools, Trade and Vocational"
02/05/2023,MY74,Learning and Development,Green Business Centre,390.00,A70,Training - Non-Taxable Benefit,7392,"Consulting, Management, and PR Services"
02/05/2023,EC37,PPS Independent Support,Foreign Exchange Fee, 0.13 ,J81,Bank Charges,,
03/05/2023,LB03,Libraries-Service Promotion,Canva* I03774-26319318,225.99,A77,Professional Subscriptions,7221,Photographic Studios
03/05/2023,LT80,Guildhall-Meetings & Events,Laithwaites Wine,-263.75,H30,Catering (taxable benefit),5921,"Package Stores, Beer, Wine, Liquor"
03/05/2023,MA69,Facilities Management,Premier Inn 44535940,367.00,J46,Other Expenses,3811,Premier Inn
03/05/2023,MC36,Pensions Administration,Gwr Maidenhead To,3.20,G39,Client Public Transport,4112,Passenger Railways
03/05/2023,MJ40,Elections -District,Stafferton Lodge,16.96,H30,Catering (taxable benefit),5812,"Eating Places, Restaurants"
04/05/2023,AK81,Postage - Rechargeable,Post Office Counter,93.35,H70,Postage,9402,Postal Services - Government Only
04/05/2023,LB82,S E Library Management,Se Strood To,42.50,G40,Staff Public Transport,4112,Passenger Railways
04/05/2023,MJ40,Elections -District,Www.Argos.Co.Uk,19.99,H10,Equipment Purchase,5311,Department Stores
04/05/2023,MJ70,State and Ceremonial,Sainsburys S/mkts,21.35,H31,Catering (non-taxable benefit),5411,Grocery Stores and Supermarkets
04/05/2023,SVRT,Disabled Facilites Grant (Revenue),Hurley Riverside P,550.00,F61,Service Charges,7033,Campgrounds and Trailer Parks
05/05/2023,MJ40,Elections -District,Premier Inn 44535940,9.99,H35,Refreshments,3811,Premier Inn
06/05/2023,MA69,Facilities Management,Sq *wycombe Wanderers Foo,172.80,J46,Other Expenses,7929,"Bands, Orchestras, and Miscellaneous Entertainers"
06/05/2023,MJ70,State and Ceremonial,Ryman 1084,104.95,H45,Stationery,5943,"Office, School Supply, and Stationery Stores"
09/05/2023,AK81,Postage - Rechargeable,Post Office Counter,46.90,H70,Postage,9402,Postal Services - Government Only
09/05/2023,EC26,"Information, Advice and Support Service",Amazon.Co.Uk*cp0xx2zp5,7.99,H45,Stationery,5969,Other Direct Marketing-Other Direct Marketers
09/05/2023,MY74,Learning and Development,Eb *local Wildlife Sit,20.00,A70,Training - Non-Taxable Benefit,7399,Other Business Services
10/05/2023,EC26,"Information, Advice and Support Service",Eig*constantcontact.Com,18.00,J11,Corporate Subscriptions,5968,Direct Marketing Continuity Subscription Merchants
10/05/2023,HC21,Place Planning & Capital,Leeds 4 Learning,180.00,J20,Conference Fees,9399,Government Services
10/05/2023,LT80,Guildhall-Meetings & Events,Laithwaites Wine,753.85,H30,Catering (taxable benefit),5921,"Package Stores, Beer, Wine, Liquor"
10/05/2023,MC36,Pensions Administration,Gwr Maidenhead To,-23.20,G39,Client Public Transport,4112,Passenger Railways
10/05/2023,MC36,Pensions Administration,Gwr Maidenhead To,-11.40,G39,Client Public Transport,4112,Passenger Railways
10/05/2023,MJ40,Elections -District,Sq *wycombe Wanderers Foo,"2,064.00",J46,Other Expenses,7929,"Bands, Orchestras, and Miscellaneous Entertainers"
10/05/2023,MT49,Community Warden Scheme,Amazon.Co.Uk*tv11g1ji5,12.01,H10,Equipment Purchase,5969,Other Direct Marketing-Other Direct Marketers
11/05/2023,HE01,"MD/Strategic Director A,C & H",Crosscountrycom,216.00,G39,Client Public Transport,4112,Passenger Railways
11/05/2023,LB18,Libraries-Maidenhead,Amznmktplace,5.99,H10,Equipment Purchase,5999,Miscellaneous and Specialty Retail Stores
11/05/2023,LB18,Libraries-Maidenhead,Paypal *ehsarc.Com,115.01,H10,Equipment Purchase,5251,Hardware Stores
11/05/2023,LB18,Libraries-Maidenhead,Ironmongerydirect Ltd,124.62,H10,Equipment Purchase,5251,Hardware Stores
11/05/2023,LR10,Braywick Nature Centre,Www.Argos.Co.Uk,27.92,H10,Equipment Purchase,5311,Department Stores
11/05/2023,MJ20,Civic & Mayoral Costs,Www.Windso* Windsor Li,15.00,J46,Other Expenses,8398,"Organizations, Charitable and Social Service"
11/05/2023,MT10,Legal Services,Stampit.Co.Uk,29.20,H10,Equipment Purchase,8999,Professional Services
11/05/2023,NA11,Town Hall- Operations,Bt Business Bill,72.68,H80,Communication,4814,Telecommunication Services
12/05/2023,AK81,Postage - Rechargeable,Post Office Counter,51.80,H70,Postage,9402,Postal Services - Government Only
14/05/2023,ML15,Public Relations,Contstant Contact,169.00,A77,Professional Subscriptions,5968,Direct Marketing Continuity Subscription Merchants
15/05/2023,AK81,Postage - Rechargeable,Post Office Self Serve,24.85,H70,Postage,9402,Postal Services - Government Only
15/05/2023,LB82,S E Library Management,Se Online Web,53.30,G40,Staff Public Transport,4112,Passenger Railways
15/05/2023,LR10,Braywick Nature Centre,Www.Screwfix.Com,47.98,H10,Equipment Purchase,5211,Lumber & Building Materials Stores
15/05/2023,NA11,Town Hall- Operations,Www.Exportaglobal.Co.U,261.10,H10,Equipment Purchase,4214,Motor Freight Carriers
16/05/2023,LB18,Libraries-Maidenhead,Replacement Keys Ltd,5.90,H10,Equipment Purchase,5399,Miscellaneous General Merchandise
16/05/2023,LB18,Libraries-Maidenhead,Paypal *tradesparky,35.89,H10,Equipment Purchase,5251,Hardware Stores
16/05/2023,MB01,Centralised Stationery,Amznmktplace,7.48,H10,Equipment Purchase,5999,Miscellaneous and Specialty Retail Stores
16/05/2023,MJ20,Civic & Mayoral Costs,Michaels Civic Robes,"1,002.60",J46,Other Expenses,5697,"Alterations, Mending, Seamstresses, Tailors  "
17/05/2023,AK81,Postage - Rechargeable,Post Office Self Serve,31.50,H70,Postage,9402,Postal Services - Government Only
17/05/2023,EC26,"Information, Advice and Support Service",Co-Op Group 500603,3.15,H35,Refreshments,5411,Grocery Stores and Supermarkets
17/05/2023,MA74,Digital Printing IGEN,Sp Springboard,122.09,H22,Materials,5691,Mens and Womens Clothing Stores
17/05/2023,NA11,Town Hall- Operations,Www.Uk-Wheelchair.Co.U,264.99,H10,Equipment Purchase,7399,Other Business Services
18/05/2023,AK81,Postage - Rechargeable,Post Office Self Serve,7.15,H70,Postage,9402,Postal Services - Government Only
18/05/2023,LB18,Libraries-Maidenhead,Paypal *cityelectri,33.92,H10,Equipment Purchase,5065,Electrical Parts and Equipment
18/05/2023,MB01,Centralised Stationery,Stationeryu,185.53,H45,Stationery,5943,"Office, School Supply, and Stationery Stores"
19/05/2023,LR10,Braywick Nature Centre,Tesco Stores 3404,19.75,J46,Other Expenses,5411,Grocery Stores and Supermarkets
19/05/2023,MJ20,Civic & Mayoral Costs,Laithwaites Wine,234.00,J46,Other Expenses,5921,"Package Stores, Beer, Wine, Liquor"
19/05/2023,SVHM,Homelessness,Travelodge Gb0000,808.74,K77,Client Temporary Accommodation,3615,Travelodge
22/05/2023,LB18,Libraries-Maidenhead,Amznmktplace,13.29,H10,Equipment Purchase,5999,Miscellaneous and Specialty Retail Stores
22/05/2023,LB18,Libraries-Maidenhead,Ironmongerydirect Ltd,124.62,H10,Equipment Purchase,5251,Hardware Stores
22/05/2023,MB01,Centralised Stationery,Stationeryu,561.60,H45,Stationery,5943,"Office, School Supply, and Stationery Stores"
22/05/2023,MJ30,Members Expenses,Www.Local.Gov.Uk,"1,334.16",J20,Conference Fees,7399,Other Business Services
22/05/2023,SFRG,Social Fund Reform Grant,Paypal *argosdirect,185.00,H16,Furniture,5331,Variety Stores
22/05/2023,SFRG,Social Fund Reform Grant,Paypal *argosdirect,195.00,H16,Furniture,5331,Variety Stores
22/05/2023,SFRG,Social Fund Reform Grant,Paypal *argosdirect,391.95,H16,Furniture,5331,Variety Stores
22/05/2023,SFRG,Social Fund Reform Grant,Paypal *argosdirect,391.95,H16,Furniture,5331,Variety Stores
23/05/2023,AK81,Postage - Rechargeable,Post Office Self Serve,40.43,H70,Postage,9402,Postal Services - Government Only
23/05/2023,LB18,Libraries-Maidenhead,Amznmktplace,4.95,H10,Equipment Purchase,5999,Miscellaneous and Specialty Retail Stores
23/05/2023,LB18,Libraries-Maidenhead,Replacement Keys Ltd,9.05,H10,Equipment Purchase,5399,Miscellaneous General Merchandise
23/05/2023,MB30,Planning Development Control,Land Registry Ecom Ccc,6.00,J46,Other Expenses,9399,Government Services
23/05/2023,MB30,Planning Development Control,Land Registry Ecom Ccc,6.00,J46,Other Expenses,9399,Government Services
23/05/2023,MB30,Planning Development Control,Land Registry Ecom Ccc,6.00,J46,Other Expenses,9399,Government Services
23/05/2023,MB30,Planning Development Control,Land Registry Ecom Ccc,6.00,J46,Other Expenses,9399,Government Services
23/05/2023,MJ20,Civic & Mayoral Costs,Tesco Stores 2668,249.74,J46,Other Expenses,5411,Grocery Stores and Supermarkets
24/05/2023,LB18,Libraries-Maidenhead,Ebay O*25-10087-75848,58.00,H10,Equipment Purchase,5311,Department Stores
24/05/2023,MA51,Democratic Services,Zoom.Us 888-799-9666,116.94,H92,Software,4814,Telecommunication Services
25/05/2023,AK81,Postage - Rechargeable,Post Office Counter,53.90,H70,Postage,9402,Postal Services - Government Only
25/05/2023,MA30,HR Strategic,C2e854601057q Ukvi,"1,199.00",J46,Other Expenses,9399,Government Services
25/05/2023,MA30,HR Strategic,C2e854600556z Ukvi,"1,199.00",J46,Other Expenses,9399,Government Services
25/05/2023,MA30,HR Strategic,C2e854601079q Ukvi,"1,199.00",J46,Other Expenses,9399,Government Services
26/05/2023,AK81,Postage - Rechargeable,Post Office Counter,26.15,H70,Postage,9402,Postal Services - Government Only
26/05/2023,LT80,Guildhall-Meetings & Events,Laithwaites Wine,567.00,H30,Catering (taxable benefit),5921,"Package Stores, Beer, Wine, Liquor"
26/05/2023,MB01,Centralised Stationery,Robert Dyas Windsor,18.68,H45,Stationery,5251,Hardware Stores
26/05/2023,MT65,Community Safety Grant Funded,Amznmktplace,70.72,H10,Equipment Purchase,5999,Miscellaneous and Specialty Retail Stores
27/05/2023,PD18,CCTV,Careline 08001013333,256.80,A77,Professional Subscriptions,5999,Miscellaneous and Specialty Retail Stores
30/05/2023,LB03,Libraries-Service Promotion,Amznmktplace,11.57,J47,Events & Activities,5999,Miscellaneous and Specialty Retail Stores
30/05/2023,LB03,Libraries-Service Promotion,Www.First4magnets.Com,117.62,J47,Events & Activities,5999,Miscellaneous and Specialty Retail Stores
30/05/2023,MJ30,Members Expenses,Premier Inn,731.00,J20,Conference Fees,3811,Premier Inn
30/05/2023,SVHM,Homelessness,Travelodge Gb0000,55.06,K77,Client Temporary Accommodation,3615,Travelodge
31/05/2023,AK81,Postage - Rechargeable,Post Office Self Serve,33.50,H70,Postage,9402,Postal Services - Government Only
31/05/2023,AK81,Postage - Rechargeable,Stationeryu,448.79,H70,Postage,5943,"Office, School Supply, and Stationery Stores"
31/05/2023,LB18,Libraries-Maidenhead,Carrier Bag Shop,287.00,H10,Equipment Purchase,5199,Other Nondurable Goods
31/05/2023,LR10,Braywick Nature Centre,Clr*www.Rbwm.Gov.Uk,21.00,J46,Other Expenses,9399,Government Services
31/05/2023,LT80,Guildhall-Meetings & Events,Booker Ltd - 38603524,57.46,H30,Catering (taxable benefit),5411,Grocery Stores and Supermarkets
31/05/2023,SVHM,Homelessness,Travelodge Gb0000,318.45,K77,Client Temporary Accommodation,3615,Travelodge
01/06/2023,AK81,Postage - Rechargeable,Post Office Self Serve,47.14,H70,Postage,9402,Postal Services - Government Only
01/06/2023,EC26,"Information, Advice and Support Service",Patreon* Membership,4.86,J11,Corporate Subscriptions,5815,"Digital Goods - Media, Books, Movies, Music"
01/06/2023,LB18,Libraries-Maidenhead,Amznmktplace,203.11,J47,Events & Activities,5999,Miscellaneous and Specialty Retail Stores
01/06/2023,LB82,S E Library Management,Paymate*spun,371.13,A77,Professional Subscriptions,8999,Professional Services
01/06/2023,MJ20,Civic & Mayoral Costs,Bourne End Jewellers L,42.00,J46,Other Expenses,5944,"Clock, Jewelry, Watch, and Silverware Store"
01/06/2023,ML15,Public Relations,Axate,2.00,A77,Professional Subscriptions,5968,Direct Marketing Continuity Subscription Merchants
02/06/2023,AK81,Postage - Rechargeable,Post Office Counter,36.99,H70,Postage,9402,Postal Services - Government Only
02/06/2023,EC26,"Information, Advice and Support Service",Foreign Exchange Fee,0.13,J81,Bank Charges,,
02/06/2023,LB82,S E Library Management,Foreign Exchange Fee,10.21,J81,Bank Charges,,
03/06/2023,LT80,Guildhall-Meetings & Events,Laithwaites Wine,276.68,H30,Catering (taxable benefit),5921,"Package Stores, Beer, Wine, Liquor"
03/06/2023,MJ20,Civic & Mayoral Costs,Mfg Slough,8.99,G10,Vehicle Servicing & Repairs,5541,Service Stations
05/06/2023,LB18,Libraries-Maidenhead,Amznmktplace,12.25,H10,Equipment Purchase,5999,Miscellaneous and Specialty Retail Stores
05/06/2023,LB18,Libraries-Maidenhead,Homebase Ltd,15.00,H10,Equipment Purchase,5200,Home Supply Warehouse Stores
05/06/2023,LB18,Libraries-Maidenhead,Amznmktplace,48.00,J47,Events & Activities,5999,Miscellaneous and Specialty Retail Stores
05/06/2023,LB18,Libraries-Maidenhead,Amznmktplace,221.65,J47,Events & Activities,5999,Miscellaneous and Specialty Retail Stores
05/06/2023,MB30,Planning Development Control,Land Registry Ecom Ccc,6.00,J46,Other Expenses,9399,Government Services
05/06/2023,MT65,Community Safety Grant Funded,Amznmktplace,35.48,H10,Equipment Purchase,5999,Miscellaneous and Specialty Retail Stores
05/06/2023,MT65,Community Safety Grant Funded,Amznmktplace,67.32,H10,Equipment Purchase,5999,Miscellaneous and Specialty Retail Stores
05/06/2023,SVHM,Homelessness,Travelodge Gb0000,301.87,K77,Client Temporary Accommodation,3615,Travelodge
06/06/2023,AK81,Postage - Rechargeable,Post Office Counter,29.15,H70,Postage,9402,Postal Services - Government Only
06/06/2023,AK81,Postage - Rechargeable,Post Office Counter,43.50,H70,Postage,9402,Postal Services - Government Only
06/06/2023,LB18,Libraries-Maidenhead,Amazon.Co.Uk*de6h57jb5,43.60,J47,Events & Activities,5969,Other Direct Marketing-Other Direct Marketers
06/06/2023,MA69,Facilities Management,Tesco Stores Plc,3.00,H31,Catering (non-taxable benefit),5411,Grocery Stores and Supermarkets
06/06/2023,MB01,Centralised Stationery,Stationeryu,64.85,H45,Stationery,5943,"Office, School Supply, and Stationery Stores"
06/06/2023,MB38,Aboricultural / Tree Team (Planning),Land Registry Ecom Ccc,6.00,J46,Other Expenses,9399,Government Services
06/06/2023,MC36,Pensions Administration,Tfl Travel Ch,3.50,G40,Staff Public Transport,4111,Local and Suburban Commuter Transportation
06/06/2023,MC36,Pensions Administration,Zettle_*ethical Caffeine,7.80,G40,Staff Public Transport,5812,"Eating Places, Restaurants"
06/06/2023,MT49,Community Warden Scheme,Amznmktplace,156.00,H10,Equipment Purchase,5999,Miscellaneous and Specialty Retail Stores
06/06/2023,MT49,Community Warden Scheme,Sp Right-Light.Co.Uk,222.34,H10,Equipment Purchase,5999,Miscellaneous and Specialty Retail Stores
06/06/2023,MT65,Community Safety Grant Funded,Amznmktplace,22.77,H10,Equipment Purchase,5999,Miscellaneous and Specialty Retail Stores
06/06/2023,MT65,Community Safety Grant Funded,Amznmktplace,34.45,H10,Equipment Purchase,5999,Miscellaneous and Specialty Retail Stores
07/06/2023,AK81,Postage - Rechargeable,Post Office Self Serve,12.35,H70,Postage,9402,Postal Services - Government Only
07/06/2023,MC36,Pensions Administration,Gwr Reading Sst,5.40,G39,Client Public Transport,4112,Passenger Railways
07/06/2023,MT49,Community Warden Scheme,Amznmktplace,53.98,H10,Equipment Purchase,5999,Miscellaneous and Specialty Retail Stores
08/06/2023,AK81,Postage - Rechargeable,Post Office Counter,106.10,H70,Postage,9402,Postal Services - Government Only
08/06/2023,LB18,Libraries-Maidenhead,Amznmktplace,12.99,J47,Events & Activities,5999,Miscellaneous and Specialty Retail Stores
08/06/2023,LB18,Libraries-Maidenhead,Clr*www.Rbwm.Gov.Uk,21.00,J47,Events & Activities,9399,Government Services
08/06/2023,LB18,Libraries-Maidenhead,Sp Yoyo Village Sale,36.92,J47,Events & Activities,5999,Miscellaneous and Specialty Retail Stores
08/06/2023,LT80,Guildhall-Meetings & Events,Sainsburys S/mkt,51.00,H31,Catering (non-taxable benefit),5411,Grocery Stores and Supermarkets
08/06/2023,MT10,Legal Services,Post Office Counter,8.20,H70,Postage,9402,Postal Services - Government Only
08/06/2023,MT49,Community Warden Scheme,Amznmktplace,51.86,H10,Equipment Purchase,5999,Miscellaneous and Specialty Retail Stores
09/06/2023,LB82,S E Library Management,Se Strood To,57.30,G40,Staff Public Transport,4112,Passenger Railways
09/06/2023,LT80,Guildhall-Meetings & Events,Laithwaites Wine,"1,311.38",H30,Catering (taxable benefit),5921,"Package Stores, Beer, Wine, Liquor"
09/06/2023,SVHM,Homelessness,Travelodge Gb0000,117.27,K77,Client Temporary Accommodation,3615,Travelodge
09/06/2023,SVHM,Homelessness,Travelodge Gb0000,994.37,K77,Client Temporary Accommodation,3615,Travelodge
10/06/2023,EC26,"Information, Advice and Support Service",Eig*constantcontact.Com,18.00,J11,Corporate Subscriptions,5968,Direct Marketing Continuity Subscription Merchants
11/06/2023,MT49,Community Warden Scheme,Amznmktplace,30.63,H10,Equipment Purchase,5999,Miscellaneous and Specialty Retail Stores
11/06/2023,MT49,Community Warden Scheme,Amznmktplace,58.71,H10,Equipment Purchase,5999,Miscellaneous and Specialty Retail Stores
12/06/2023,AK81,Postage - Rechargeable,Post Office Self Serve,31.25,H70,Postage,9402,Postal Services - Government Only
12/06/2023,LB18,Libraries-Maidenhead,Amznmktplace,11.28,J47,Events & Activities,5999,Miscellaneous and Specialty Retail Stores
12/06/2023,MT65,Community Safety Grant Funded,Amznmktplace,21.98,H10,Equipment Purchase,5999,Miscellaneous and Specialty Retail Stores
12/06/2023,SVHM,Homelessness,Travelodge Gb0000,62.20,K77,Client Temporary Accommodation,3615,Travelodge
13/06/2023,AK81,Postage - Rechargeable,Post Office Self Serve,38.20,H70,Postage,9402,Postal Services - Government Only
13/06/2023,LR10,Braywick Nature Centre,Screwfix Dir Ltd,88.46,H10,Equipment Purchase,5211,Lumber & Building Materials Stores
13/06/2023,MA42,Business Development,Helloprint United Kingdom,23.14,J44,Marketing/Promotions,7338,"Quick Copy, Reproduction, and Blueprinting Service"
13/06/2023,MA42,Business Development,Xl Displays Ltd,512.40,J44,Marketing/Promotions,5399,Miscellaneous General Merchandise
13/06/2023,MB30,Planning Development Control,Land Registry Ecom Ccc,3.00,J46,Other Expenses,9399,Government Services
14/06/2023,LT80,Guildhall-Meetings & Events,Laithwaites Wine,542.88,H30,Catering (taxable benefit),5921,"Package Stores, Beer, Wine, Liquor"
14/06/2023,MB01,Centralised Stationery,Amznmktplace,16.03,H10,Equipment Purchase,5999,Miscellaneous and Specialty Retail Stores
14/06/2023,MB01,Centralised Stationery,Amznmktplace,45.44,H10,Equipment Purchase,5999,Miscellaneous and Specialty Retail Stores
14/06/2023,ML15,Public Relations,Contstant Contact,169.00,A77,Professional Subscriptions,5968,Direct Marketing Continuity Subscription Merchants
15/06/2023,AK81,Postage - Rechargeable,Post Office Self Serve,73.10,H70,Postage,9402,Postal Services - Government Only
15/06/2023,EC26,"Information, Advice and Support Service",Sainsburys S/mkts,5.65,H35,Refreshments,5411,Grocery Stores and Supermarkets
15/06/2023,LB18,Libraries-Maidenhead,Amznmktplace,19.99,H10,Equipment Purchase,5999,Miscellaneous and Specialty Retail Stores
15/06/2023,MJ20,Civic & Mayoral Costs,Beaconsfield Sstp,34.20,G39,Client Public Transport,4112,Passenger Railways
15/06/2023,MY37,Corporate I.T. - Networks,Amazon Prime*d44ze9x55,95.00,J11,Corporate Subscriptions,5968,Direct Marketing Continuity Subscription Merchants
16/06/2023,LB18,Libraries-Maidenhead,Amznmktplace,17.10,J47,Events & Activities,5999,Miscellaneous and Specialty Retail Stores
18/06/2023,LB18,Libraries-Maidenhead,Amznmktplace,7.95,H10,Equipment Purchase,5999,Miscellaneous and Specialty Retail Stores
18/06/2023,LB18,Libraries-Maidenhead,Amznmktplace,17.97,J47,Events & Activities,5999,Miscellaneous and Specialty Retail Stores
19/06/2023,AK81,Postage - Rechargeable,Post Office Self Serve,43.35,H70,Postage,9402,Postal Services - Government Only
19/06/2023,LB18,Libraries-Maidenhead,Amazon.Co.Uk*8e1ar7545,7.33,J47,Events & Activities,5969,Other Direct Marketing-Other Direct Marketers
19/06/2023,LB18,Libraries-Maidenhead,Amznmktplace,9.57,J47,Events & Activities,5999,Miscellaneous and Specialty Retail Stores
19/06/2023,LB18,Libraries-Maidenhead,Amznmktplace,11.99,J47,Events & Activities,5999,Miscellaneous and Specialty Retail Stores
19/06/2023,LB18,Libraries-Maidenhead,Amznmktplace,21.99,J47,Events & Activities,5999,Miscellaneous and Specialty Retail Stores
19/06/2023,LB18,Libraries-Maidenhead,Amznmktplace,25.99,H10,Equipment Purchase,5999,Miscellaneous and Specialty Retail Stores
19/06/2023,LB18,Libraries-Maidenhead,Gls Educational Su,66.86,J47,Events & Activities,8220,"Colleges, Universities, Professional Schools"
19/06/2023,LB18,Libraries-Maidenhead,Dvla Vehicle Tax,202.50,J46,Other Expenses,9311,Tax Payments
19/06/2023,LB18,Libraries-Maidenhead,Baker Ross,336.26,J47,Events & Activities,5970,"Artist Supply Stores, Craft Shops"
20/06/2023,AK81,Postage - Rechargeable,Post Office Counter,15.75,H70,Postage,9402,Postal Services - Government Only
20/06/2023,LR10,Braywick Nature Centre,Vmo*vimeo Plus+ Monthl,9.54,J46,Other Expenses,5968,Direct Marketing Continuity Subscription Merchants
20/06/2023,MB01,Centralised Stationery,Stationeryu,73.43,H45,Stationery,5943,"Office, School Supply, and Stationery Stores"
20/06/2023,MC36,Pensions Administration,Premier Inn,185.98,K77,Client Temporary Accommodation,3811,Premier Inn
20/06/2023,ML15,Public Relations,Amazon.Co.Uk*je3lf38b5,22.71,H10,Equipment Purchase,5969,Other Direct Marketing-Other Direct Marketers
20/06/2023,SVHM,Homelessness,Travelodge Gb0000,915.86,K77,Client Temporary Accommodation,3615,Travelodge
21/06/2023,AK81,Postage - Rechargeable,Post Office Counter,6.75,H70,Postage,9402,Postal Services - Government Only
21/06/2023,LB18,Libraries-Maidenhead,Amznmktplace,2.98,H10,Equipment Purchase,5999,Miscellaneous and Specialty Retail Stores
21/06/2023,LB18,Libraries-Maidenhead,Amznmktplace,13.14,H10,Equipment Purchase,5999,Miscellaneous and Specialty Retail Stores
21/06/2023,NA11,Town Hall- Operations,Currys Slough,39.99,H10,Equipment Purchase,5732,Electronic Sales
22/06/2023,AK81,Postage - Rechargeable,Post Office Self Serve,38.25,H70,Postage,9402,Postal Services - Government Only
22/06/2023,LR10,Braywick Nature Centre,Amznmktplace,11.98,H10,Equipment Purchase,5999,Miscellaneous and Specialty Retail Stores
22/06/2023,MA69,Facilities Management,Post Office Counter,184.00,J46,Other Expenses,9402,Postal Services - Government Only
22/06/2023,MA69,Facilities Management,Post Office Counter,184.00,J46,Other Expenses,9402,Postal Services - Government Only
22/06/2023,MB01,Centralised Stationery,Stationeryu,216.49,H45,Stationery,5943,"Office, School Supply, and Stationery Stores"
23/06/2023,LB18,Libraries-Maidenhead,Amznmktplace,9.98,J47,Events & Activities,5999,Miscellaneous and Specialty Retail Stores
23/06/2023,LB18,Libraries-Maidenhead,Www.First4magnets.Com,121.63,J47,Events & Activities,5999,Miscellaneous and Specialty Retail Stores
23/06/2023,MT06,Head- Strategy.Policy.,Amznmktplace,70.38,J20,Conference Fees,5999,Miscellaneous and Specialty Retail Stores
23/06/2023,MT06,Head- Strategy.Policy.,Marks&spencer Plc,71.50,J20,Conference Fees,5411,Grocery Stores and Supermarkets
24/06/2023,MA51,Democratic Services,Zoom.Us 888-799-9666,116.94,H92,Software,4814,Telecommunication Services
25/06/2023,LE10,Economic Development,Vmo*vimeo Pro,226.80,J46,Other Expenses,5968,Direct Marketing Continuity Subscription Merchants
26/06/2023,AK81,Postage - Rechargeable,Post Office Self Serve,20.25,H70,Postage,9402,Postal Services - Government Only
26/06/2023,LB18,Libraries-Maidenhead,Amznmktplace,6.99,H10,Equipment Purchase,5999,Miscellaneous and Specialty Retail Stores
26/06/2023,LB80,Libraries-Replacement System,Amznmktplace,16.94,H91,Hardware,5999,Miscellaneous and Specialty Retail Stores
27/06/2023,AK81,Postage - Rechargeable,Post Office Self Serve,38.25,H70,Postage,9402,Postal Services - Government Only
27/06/2023,MT65,Community Safety Grant Funded,Amznmktplace,28.07,H10,Equipment Purchase,5999,Miscellaneous and Specialty Retail Stores
27/06/2023,MY74,Learning and Development,Qa.Com,"2,340.00",A70,Training - Non-Taxable Benefit,8299,Other Schools and Educational Services
28/06/2023,AK81,Postage - Rechargeable,Post Office Counter,13.15,H70,Postage,9402,Postal Services - Government Only
28/06/2023,LT80,Guildhall-Meetings & Events,Waitrose 194,24.50,H30,Catering (taxable benefit),5411,Grocery Stores and Supermarkets
28/06/2023,LT80,Guildhall-Meetings & Events,Laithwaites Wine,"1,842.00",H30,Catering (taxable benefit),5921,"Package Stores, Beer, Wine, Liquor"
28/06/2023,MA69,Facilities Management,Post Office Counter,368.00,J46,Other Expenses,9402,Postal Services - Government Only
28/06/2023,MJ20,Civic & Mayoral Costs,Mfg Maidenhead Road,14.99,J46,Other Expenses,5541,Service Stations
29/06/2023,AK81,Postage - Rechargeable,Post Office Counter,57.60,H70,Postage,9402,Postal Services - Government Only
29/06/2023,LB18,Libraries-Maidenhead,Sainsburys Smkts,308.00,J47,Events & Activities,5411,Grocery Stores and Supermarkets
29/06/2023,LT80,Guildhall-Meetings & Events,Booker Ltd - 38603524,236.34,H30,Catering (taxable benefit),5411,Grocery Stores and Supermarkets
29/06/2023,MT10,Legal Services,Post Office Counter,5.39,H70,Postage,9402,Postal Services - Government Only
30/06/2023,MB30,Planning Development Control,Land Registry Ecom Ccc,6.00,J46,Other Expenses,9399,Government Services
30/06/2023,MB30,Planning Development Control,Land Registry Ecom Ccc,6.00,J46,Other Expenses,9399,Government Services
30/06/2023,SVHM,Homelessness,Travelodge Gb0000,"1,520.64",K77,Client Temporary Accommodation,3615,Travelodge
02/07/2023,LB18,Libraries-Maidenhead,Amz*tabitha Tam,-9.98,J47,Events & Activities,5999,Miscellaneous and Specialty Retail Stores
02/07/2023,ML15,Public Relations,Axate,2.00,A77,Professional Subscriptions,5968,Direct Marketing Continuity Subscription Merchants
03/07/2023,AK81,Postage - Rechargeable,Post Office Counter,59.70,H70,Postage,9402,Postal Services - Government Only
03/07/2023,LB82,S E Library Management,Se Online Web,35.40,G40,Staff Public Transport,4112,Passenger Railways
05/07/2023,AK81,Postage - Rechargeable,Post Office Self Serve,62.70,H70,Postage,9402,Postal Services - Government Only
05/07/2023,LB18,Libraries-Maidenhead,Amznmktplace,13.59,H10,Equipment Purchase,5999,Miscellaneous and Specialty Retail Stores
05/07/2023,LB70,Libraries-Stock Fund,Wob.Com,37.66,J55,Book Stock Fund,5192,"Books, Periodicals and Newspapers"
05/07/2023,LR10,Braywick Nature Centre,Lidl Gb Maidenhead,7.63,J46,Other Expenses,5411,Grocery Stores and Supermarkets
05/07/2023,LR10,Braywick Nature Centre,Lidl Gb Maidenhead,17.14,J46,Other Expenses,5411,Grocery Stores and Supermarkets
05/07/2023,MB30,Planning Development Control,Land Registry Ecom Ccc,6.00,J46,Other Expenses,9399,Government Services
05/07/2023,MB30,Planning Development Control,Land Registry Ecom Ccc,6.00,J46,Other Expenses,9399,Government Services
05/07/2023,NA11,Town Hall- Operations,Www.Screwfix.Com,8.32,H10,Equipment Purchase,5211,Lumber & Building Materials Stores
06/07/2023,MB38,Aboricultural / Tree Team (Planning),Land Registry Ecom Ccc,6.00,J46,Other Expenses,9399,Government Services
06/07/2023,MB38,Aboricultural / Tree Team (Planning),Land Registry Ecom Ccc,6.00,J46,Other Expenses,9399,Government Services
06/07/2023,MB38,Aboricultural / Tree Team (Planning),Land Registry Ecom Ccc,6.00,J46,Other Expenses,9399,Government Services
06/07/2023,MB38,Aboricultural / Tree Team (Planning),Land Registry Ecom Ccc,6.00,J46,Other Expenses,9399,Government Services
06/07/2023,MC36,Pensions Administration,Gwr Maidenhead To,104.40,G39,Client Public Transport,4112,Passenger Railways
06/07/2023,MJ20,Civic & Mayoral Costs,Powerbell Services Limite,45.00,G10,Vehicle Servicing & Repairs,7538,Automotive Service Shops
06/07/2023,MJ20,Civic & Mayoral Costs,Powerbell Services Limite,"1,516.54",G10,Vehicle Servicing & Repairs,7538,Automotive Service Shops
10/07/2023,EC26,"Information, Advice and Support Service",Eig*constantcontact.Com,21.60,J11,Corporate Subscriptions,5968,Direct Marketing Continuity Subscription Merchants
10/07/2023,MB30,Planning Development Control,Land Registry Ecom Ccc,6.00,J46,Other Expenses,9399,Government Services
10/07/2023,MB38,Aboricultural / Tree Team (Planning),Bsi Standards Ltd,232.00,J46,Other Expenses,2741,Miscellaneous Publishing and Printing
11/07/2023,LB18,Libraries-Maidenhead,Amznmktplace,5.59,J47,Events & Activities,5999,Miscellaneous and Specialty Retail Stores
11/07/2023,MB30,Planning Development Control,Land Registry Ecom Ccc,3.00,J46,Other Expenses,9399,Government Services
11/07/2023,MB30,Planning Development Control,Land Registry Ecom Ccc,6.00,J46,Other Expenses,9399,Government Services
12/07/2023,EC26,"Information, Advice and Support Service",Tesco-Stores 6262,3.05,H35,Refreshments,5411,Grocery Stores and Supermarkets
12/07/2023,LB18,Libraries-Maidenhead,Majestic Wine,656.43,H35,Refreshments,5921,"Package Stores, Beer, Wine, Liquor"
12/07/2023,LB24,Libraries-Windsor,Amazon.Co.Uk*oy3sh5hs5,22.92,H10,Equipment Purchase,5969,Other Direct Marketing-Other Direct Marketers
12/07/2023,LB82,S E Library Management,Se Strood To,50.20,G40,Staff Public Transport,4112,Passenger Railways
12/07/2023,MJ20,Civic & Mayoral Costs,Gwr Maidenhead Sst,3.20,G40,Staff Public Transport,4112,Passenger Railways
12/07/2023,MJ20,Civic & Mayoral Costs,Powerbell Services Limite,362.39,G10,Vehicle Servicing & Repairs,7538,Automotive Service Shops
13/07/2023,LB18,Libraries-Maidenhead,Amznmktplace,9.99,H10,Equipment Purchase,5999,Miscellaneous and Specialty Retail Stores
13/07/2023,LE10,Economic Development,Terraquest Solutions Ltd,21.00,J46,Other Expenses,2741,Miscellaneous Publishing and Printing
13/07/2023,LT80,Guildhall-Meetings & Events,Laithwaites Wine,-209.88,H30,Catering (taxable benefit),5921,"Package Stores, Beer, Wine, Liquor"
13/07/2023,LT80,Guildhall-Meetings & Events,Windsor And Eton Brewery,123.66,H30,Catering (taxable benefit),5921,"Package Stores, Beer, Wine, Liquor"
13/07/2023,MB06,Planning Enforcement,Land Registry Ecom Ccc,6.00,J46,Other Expenses,9399,Government Services
13/07/2023,MT65,Community Safety Grant Funded,Amznmktplace,28.07,H10,Equipment Purchase,5999,Miscellaneous and Specialty Retail Stores
13/07/2023,PQ41,Burial of the Dead,Clr*royal Borough Of,11.00,J46,Other Expenses,9399,Government Services
14/07/2023,LT80,Guildhall-Meetings & Events,W J Daniel & Co,129.99,H10,Equipment Purchase,5311,Department Stores
14/07/2023,ML15,Public Relations,Contstant Contact,196.00,A77,Professional Subscriptions,5968,Direct Marketing Continuity Subscription Merchants
14/07/2023,NA11,Town Hall- Operations,Tesco Stores Plc,1.30,H31,Catering (non-taxable benefit),5411,Grocery Stores and Supermarkets
16/07/2023,LB18,Libraries-Maidenhead,Amznmktplace,29.50,H10,Equipment Purchase,5999,Miscellaneous and Specialty Retail Stores
17/07/2023,EC26,"Information, Advice and Support Service",Loqate,60.00,H92,Software,5968,Direct Marketing Continuity Subscription Merchants
17/07/2023,LB18,Libraries-Maidenhead,Majestic Wine,244.00,J47,Events & Activities,5921,"Package Stores, Beer, Wine, Liquor"
17/07/2023,MT10,Legal Services,Post Office Counter,2.60,H70,Postage,9402,Postal Services - Government Only
17/07/2023,SVHM,Homelessness,Premier Inn,614.00,K77,Client Temporary Accommodation,3811,Premier Inn
18/07/2023,LB18,Libraries-Maidenhead,Sainsburys.Co.Uk,82.03,J47,Events & Activities,5411,Grocery Stores and Supermarkets
18/07/2023,MB06,Planning Enforcement,Land Registry Ecom Ccc,6.00,J46,Other Expenses,9399,Government Services
18/07/2023,MT49,Community Warden Scheme,Sp Patrolstore,61.98,H10,Equipment Purchase,5399,Miscellaneous General Merchandise
19/07/2023,EC26,"Information, Advice and Support Service",Amazon.Co.Uk*j18e46pm5,8.66,H45,Stationery,5969,Other Direct Marketing-Other Direct Marketers
19/07/2023,LB18,Libraries-Maidenhead,Amazon Prime*r02ag7vq5,8.99,J46,Other Expenses,5968,Direct Marketing Continuity Subscription Merchants
19/07/2023,LR10,Braywick Nature Centre,Teemill Pro,10.00,J46,Other Expenses,5699,Miscellaneous Accessory and Apparel Stores
19/07/2023,LR10,Braywick Nature Centre,Teemill Tech Ltd,20.34,J46,Other Expenses,5699,Miscellaneous Accessory and Apparel Stores
19/07/2023,LR10,Braywick Nature Centre,Radio Solutions,85.14,H10,Equipment Purchase,5065,Electrical Parts and Equipment
19/07/2023,MA42,Business Development,Www.Presco-Uk.Com,122.30,H45,Stationery,5943,"Office, School Supply, and Stationery Stores"
19/07/2023,MT49,Community Warden Scheme,Ecardforest Cards&gift,3.49,H10,Equipment Purchase,5815,"Digital Goods - Media, Books, Movies, Music"
20/07/2023,LB18,Libraries-Maidenhead,Sainsburys.Co.Uk,98.27,J47,Events & Activities,5411,Grocery Stores and Supermarkets
20/07/2023,LR10,Braywick Nature Centre,Vmo*vimeo Plus+ Monthl,9.54,J46,Other Expenses,5968,Direct Marketing Continuity Subscription Merchants
20/07/2023,LR10,Braywick Nature Centre,Teemill Tech Ltd,181.44,J46,Other Expenses,5699,Miscellaneous Accessory and Apparel Stores
20/07/2023,LT80,Guildhall-Meetings & Events,Southern Co-Op 0176,6.95,H31,Catering (non-taxable benefit),5411,Grocery Stores and Supermarkets
20/07/2023,LT80,Guildhall-Meetings & Events,Windsor And Eton Brewery,98.93,H30,Catering (taxable benefit),5921,"Package Stores, Beer, Wine, Liquor"
20/07/2023,LT80,Guildhall-Meetings & Events,Laithwaites Wine,"1,557.97",H30,Catering (taxable benefit),5921,"Package Stores, Beer, Wine, Liquor"
20/07/2023,ML15,Public Relations,Amznmktplace,55.97,H10,Equipment Purchase,5999,Miscellaneous and Specialty Retail Stores
21/07/2023,LB18,Libraries-Maidenhead,Sainsburys S/mkts,3.95,J47,Events & Activities,5411,Grocery Stores and Supermarkets
21/07/2023,LB18,Libraries-Maidenhead,Sainsburys S/mkts,9.90,J47,Events & Activities,5411,Grocery Stores and Supermarkets
21/07/2023,LB18,Libraries-Maidenhead,Robert Dyas Maidenhead,69.34,J47,Events & Activities,5251,Hardware Stores
21/07/2023,LE10,Economic Development,Paperturn *1021297,172.80,J46,Other Expenses,5045,"Computers, Computer Peripheral Equipment, Software"
21/07/2023,MT10,Legal Services,Find A Will,1.50,J46,Other Expenses,8999,Professional Services
21/07/2023,MY37,Corporate I.T. - Networks,Amazon Prime,-95.00,J11,Corporate Subscriptions,5968,Direct Marketing Continuity Subscription Merchants
24/07/2023,LB18,Libraries-Maidenhead,Majestic Wine,-240.00,J47,Events & Activities,5921,"Package Stores, Beer, Wine, Liquor"
24/07/2023,LB18,Libraries-Maidenhead,Amznmktplace,9.69,H10,Equipment Purchase,5999,Miscellaneous and Specialty Retail Stores
24/07/2023,LB18,Libraries-Maidenhead,Amznmktplace,12.99,H10,Equipment Purchase,5999,Miscellaneous and Specialty Retail Stores
24/07/2023,MA51,Democratic Services,Zoom.Us 888-799-9666,116.94,H92,Software,4814,Telecommunication Services
24/07/2023,MT49,Community Warden Scheme,Amazon.Co.Uk*7p9yp7p15,31.34,H10,Equipment Purchase,5969,Other Direct Marketing-Other Direct Marketers
24/07/2023,MT49,Community Warden Scheme,Dvla Vehicle Tax,172.50,H10,Equipment Purchase,9311,Tax Payments
24/07/2023,MT49,Community Warden Scheme,Dvla Vehicle Tax,172.50,H10,Equipment Purchase,9311,Tax Payments
24/07/2023,MT49,Community Warden Scheme,Dvla Vehicle Tax,172.50,A77,Professional Subscriptions,9311,Tax Payments
24/07/2023,SVHM,Homelessness,Premier Inn,695.50,K77,Client Temporary Accommodation,3811,Premier Inn
25/07/2023,MB06,Planning Enforcement,Land Registry Ecom Ccc,6.00,J46,Other Expenses,9399,Government Services
25/07/2023,MB06,Planning Enforcement,Land Registry Ecom Ccc,6.00,J46,Other Expenses,9399,Government Services
25/07/2023,PQ41,Burial of the Dead,Clr*royal Borough Of,11.00,J46,Other Expenses,9399,Government Services
26/07/2023,LR10,Braywick Nature Centre,Homebase Ltd,450.00,H10,Equipment Purchase,5200,Home Supply Warehouse Stores
28/07/2023,LB18,Libraries-Maidenhead,One Below,4.50,H10,Equipment Purchase,5411,Grocery Stores and Supermarkets
28/07/2023,LB18,Libraries-Maidenhead,Amznmktplace,21.57,H10,Equipment Purchase,5999,Miscellaneous and Specialty Retail Stores
28/07/2023,MB06,Planning Enforcement,Land Registry Ecom Ccc,6.00,J46,Other Expenses,9399,Government Services
29/07/2023,LB18,Libraries-Maidenhead,Amznmktplace,6.79,J47,Events & Activities,5999,Miscellaneous and Specialty Retail Stores
29/07/2023,LB18,Libraries-Maidenhead,Amazon.Co.Uk*ea72j5uw5,38.73,H10,Equipment Purchase,5969,Other Direct Marketing-Other Direct Marketers
31/07/2023,HE01,"MD/Strategic Director A,C & H",The Society Of Local Auth,630.00,J20,Conference Fees,8699,"Organizations, Membership"
31/07/2023,SVHM,Homelessness,Premier Inn,585.50,K77,Client Temporary Accommodation,3811,Premier Inn
01/08/2023,MB06,Planning Enforcement,Land Registry Ecom Ccc,3.00,J46,Other Expenses,9399,Government Services
02/08/2023,LB18,Libraries-Maidenhead,Amznmktplace,28.97,H10,Equipment Purchase,5999,Miscellaneous and Specialty Retail Stores
02/08/2023,ML15,Public Relations,Axate,2.00,A77,Professional Subscriptions,5968,Direct Marketing Continuity Subscription Merchants
03/08/2023,SFRG,Social Fund Reform Grant,Www.Argos.Co.Uk,187.95,H16,Furniture,5311,Department Stores
03/08/2023,SFRG,Social Fund Reform Grant,Www.Argos.Co.Uk,187.95,H16,Furniture,5311,Department Stores
03/08/2023,SFRG,Social Fund Reform Grant,Currys Online,368.00,H16,Furniture,5732,Electronic Sales
03/08/2023,SFRG,Social Fund Reform Grant,Currys Online,383.00,H16,Furniture,5732,Electronic Sales
04/08/2023,MB06,Planning Enforcement,Land Registry Ecom Ccc,6.00,J46,Other Expenses,9399,Government Services
04/08/2023,MJ20,Civic & Mayoral Costs,Clr*www.Rbwm.Gov.Uk,147.00,J46,Other Expenses,9399,Government Services
07/08/2023,LR10,Braywick Nature Centre,Amznmktplace,38.99,J46,Other Expenses,5999,Miscellaneous and Specialty Retail Stores
07/08/2023,SFRG,Social Fund Reform Grant,Www.Argos.Co.Uk,-185.00,H16,Furniture,5311,Department Stores
07/08/2023,SFRG,Social Fund Reform Grant,Www.Argos.Co.Uk,-2.95,H16,Furniture,5311,Department Stores
07/08/2023,SVHM,Homelessness,Travelodge Gb0000,808.75,K77,Client Temporary Accommodation,3615,Travelodge
08/08/2023,LB21,Libraries-Sunningdale,Sp Displaysense Ltd,152.00,H10,Equipment Purchase,5712,"Equipment, Furniture, and Home Furnishings Stores "
08/08/2023,LE10,Economic Development,Sp Love Maps On Ltd.,100.00,J46,Other Expenses,7333,"Commercial Art, Graphics, Photography "
08/08/2023,LE10,Economic Development,Royal Mail Online Shop,165.00,J46,Other Expenses,9402,Postal Services - Government Only
08/08/2023,MB01,Centralised Stationery,Stationeryu,528.31,H45,Stationery,5943,"Office, School Supply, and Stationery Stores"
08/08/2023,MY74,Learning and Development,Www.Soton.Ac.Uk,425.00,A70,Training - Non-Taxable Benefit,8220,"Colleges, Universities, Professional Schools"
08/08/2023,NA11,Town Hall- Operations,Homebase Ltd,7.70,H10,Equipment Purchase,5200,Home Supply Warehouse Stores
09/08/2023,MB01,Centralised Stationery,Stationeryu,60.79,H45,Stationery,5943,"Office, School Supply, and Stationery Stores"
09/08/2023,MJ20,Civic & Mayoral Costs,Powerbell Services Limite,"1,029.30",G10,Vehicle Servicing & Repairs,7538,Automotive Service Shops
09/08/2023,MY74,Learning and Development,Www.Charteredforesters,45.00,A70,Training - Non-Taxable Benefit,8699,"Organizations, Membership"
09/08/2023,NA11,Town Hall- Operations,Homebase Ltd,188.00,H10,Equipment Purchase,5200,Home Supply Warehouse Stores
10/08/2023,EC26,"Information, Advice and Support Service",Eig*constantcontact.Com,21.60,H80,Communication,5968,Direct Marketing Continuity Subscription Merchants
10/08/2023,LT80,Guildhall-Meetings & Events,Marks&spencer Plc,15.30,H31,Catering (non-taxable benefit),5411,Grocery Stores and Supermarkets
10/08/2023,MA30,HR Strategic,Stationeryu,127.74,H10,Equipment Purchase,5943,"Office, School Supply, and Stationery Stores"
10/08/2023,MB01,Centralised Stationery,Ryman,82.98,H45,Stationery,5943,"Office, School Supply, and Stationery Stores"
10/08/2023,MB06,Planning Enforcement,Land Registry Ecom Ccc,6.00,J46,Other Expenses,9399,Government Services
10/08/2023,NA11,Town Hall- Operations,Bt Business Bill,72.68,H80,Communication,4814,Telecommunication Services
10/08/2023,PQ41,Burial of the Dead,Clr*royal Borough Of,11.00,J46,Other Expenses,9399,Government Services
11/08/2023,LB70,Libraries-Stock Fund,Amznmktplace,26.49,J46,Other Expenses,5999,Miscellaneous and Specialty Retail Stores
11/08/2023,MB01,Centralised Stationery,Stationeryu,26.99,H45,Stationery,5943,"Office, School Supply, and Stationery Stores"
14/08/2023,LR10,Braywick Nature Centre,Tally Ho Farm Limited,29.10,J46,Other Expenses,5995,Pet Shops-Pet Food and Supplies
14/08/2023,LR10,Braywick Nature Centre,Tesco Stores 3404,43.11,J46,Other Expenses,5411,Grocery Stores and Supermarkets
14/08/2023,ML15,Public Relations,Contstant Contact,196.00,A77,Professional Subscriptions,5968,Direct Marketing Continuity Subscription Merchants
15/08/2023,LR10,Braywick Nature Centre,Homebase Ltd,3.60,H10,Equipment Purchase,5200,Home Supply Warehouse Stores
15/08/2023,LR10,Braywick Nature Centre,Sainsburys Spmkts,6.75,J46,Other Expenses,5411,Grocery Stores and Supermarkets
15/08/2023,LR10,Braywick Nature Centre,Tesco Stores 4395,16.60,J46,Other Expenses,5411,Grocery Stores and Supermarkets
15/08/2023,LR10,Braywick Nature Centre,Iceland,19.00,J46,Other Expenses,5411,Grocery Stores and Supermarkets
15/08/2023,MB38,Aboricultural / Tree Team (Planning),Greenham Trading Ltd,98.33,J01,Clothing & Uniforms,5072,Hardware Equipment and Supplies
16/08/2023,LE10,Economic Development,Clr*www.Rbwm.Gov.Uk,147.00,J46,Other Expenses,9399,Government Services
16/08/2023,LE10,Economic Development,Clr*www.Rbwm.Gov.Uk,147.00,J46,Other Expenses,9399,Government Services
16/08/2023,LR10,Braywick Nature Centre,Tesco Stores 3404,18.06,J46,Other Expenses,5411,Grocery Stores and Supermarkets
16/08/2023,MA69,Facilities Management,Laithwaites Wine,18.06,J46,Other Expenses,5921,"Package Stores, Beer, Wine, Liquor"
16/08/2023,MB06,Planning Enforcement,Land Registry Ecom Ccc,6.00,J46,Other Expenses,9399,Government Services
16/08/2023,MB38,Aboricultural / Tree Team (Planning),Thomson Reuters UK Ltd,195.00,H10,Equipment Purchase,8999,Professional Services
17/08/2023,LE10,Economic Development,Squarespace Inc.,19.20,A77,Professional Subscriptions,7372,"Computer Program, System Design"
17/08/2023,SVHM,Homelessness,Premier Inn,681.50,K77,Client Temporary Accommodation,3811,Premier Inn
18/08/2023,LE10,Economic Development,Clr*www.Rbwm.Gov.Uk,171.00,J46,Other Expenses,9399,Government Services
18/08/2023,LE10,Economic Development,Clr*www.Rbwm.Gov.Uk,171.00,J46,Other Expenses,9399,Government Services
18/08/2023,LT80,Guildhall-Meetings & Events,Tst-Webrew Trade,48.75,H30,Catering (taxable benefit),5813,"Bars, Cocktail Lounges, Discotheques, Nightclubs"
18/08/2023,NA11,Town Hall- Operations,Www.Screwfix.Com,69.94,H10,Equipment Purchase,5211,Lumber & Building Materials Stores
18/08/2023,PX01,Trading Standards,Www.Apea.Org.Uk,50.00,A77,Professional Subscriptions,8699,"Organizations, Membership"
18/08/2023,SFRG,Social Fund Reform Grant,Paypal *argosdirect,505.95,H16,Furniture,5331,Variety Stores
18/08/2023,SFRG,Social Fund Reform Grant,Paypal *argosdirect,520.00,H16,Furniture,5331,Variety Stores
19/08/2023,LB18,Libraries-Maidenhead,Amazon Prime*1f2w428z4,8.99,J46,Other Expenses,5968,Direct Marketing Continuity Subscription Merchants
21/08/2023,LR10,Braywick Nature Centre,Vmo*vimeo Plus+ Monthl,9.54,J46,Other Expenses,5968,Direct Marketing Continuity Subscription Merchants
21/08/2023,MH33,Environmental Protection,Chartered Institute Of En,183.00,A77,Professional Subscriptions,8398,"Organizations, Charitable and Social Service"
21/08/2023,SVHM,Homelessness,Travelodge Gb0000,87.70,K77,Client Temporary Accommodation,3615,Travelodge
24/08/2023,LR10,Braywick Nature Centre,Steane & Co,5.00,J46,Other Expenses,5251,Hardware Stores
24/08/2023,MA51,Democratic Services,Zoom.Us 888-799-9666,116.94,H92,Software,4814,Telecommunication Services
24/08/2023,MB06,Planning Enforcement,Land Registry Ecom Ccc,6.00,J46,Other Expenses,9399,Government Services
24/08/2023,SVHM,Homelessness,Travelodge Gb0000,395.70,K77,Client Temporary Accommodation,3615,Travelodge
25/08/2023,LB82,S E Library Management,Microsoft*microsoft 365 F,79.99,H92,Software,5816,Digital Goods - Games
26/08/2023,LB18,Libraries-Maidenhead,Amznmktplace,24.59,H10,Equipment Purchase,5999,Miscellaneous and Specialty Retail Stores
29/08/2023,LT80,Guildhall-Meetings & Events,Booker Ltd - 38603524,48.06,H30,Catering (taxable benefit),5411,Grocery Stores and Supermarkets
29/08/2023,LT80,Guildhall-Meetings & Events,Laithwaites Wine,983.66,H30,Catering (taxable benefit),5921,"Package Stores, Beer, Wine, Liquor"
29/08/2023,MB06,Planning Enforcement,Land Registry Ecom Ccc,6.00,J46,Other Expenses,9399,Government Services
29/08/2023,MJ20,Civic & Mayoral Costs,Taplow To,3.20,G40,Staff Public Transport,4112,Passenger Railways
29/08/2023,NA11,Town Hall- Operations,Homebase Ltd,50.50,H10,Equipment Purchase,5200,Home Supply Warehouse Stores
30/08/2023,LE10,Economic Development,Terraquest Solutions Ltd,10.20,J46,Other Expenses,2741,Miscellaneous Publishing and Printing
30/08/2023,MB01,Centralised Stationery,Stationeryu,230.82,H45,Stationery,5943,"Office, School Supply, and Stationery Stores"
30/08/2023,MB06,Planning Enforcement,Land Registry Ecom Ccc,6.00,J46,Other Expenses,9399,Government Services
30/08/2023,MB38,Aboricultural / Tree Team (Planning),Honey Brothers Ltd,59.09,H10,Equipment Purchase,5072,Hardware Equipment and Supplies
30/08/2023,MC36,Pensions Administration,Marks&spencer Plc,50.00,H10,Equipment Purchase,5411,Grocery Stores and Supermarkets
30/08/2023,MC36,Pensions Administration,Institute Of Payroll P,215.00,A70,Training - Non-Taxable Benefit,8999,Professional Services
30/08/2023,MC36,Pensions Administration,Institute Of Payroll P,215.00,A70,Training - Non-Taxable Benefit,8999,Professional Services
30/08/2023,PC99,Car Parks Contractor,Admiral Cleaning Suppl,24.05,F17,Service Contracts,2842,"Specialty Cleaning, Polishing, and Sanitation"
30/08/2023,SVHM,Homelessness,Travelodge Gb0000,592.52,K77,Client Temporary Accommodation,3615,Travelodge
31/08/2023,LB18,Libraries-Maidenhead,Sq *smm Media Limited,64.45,J47,Events & Activities,8299,Other Schools and Educational Services
31/08/2023,LT80,Guildhall-Meetings & Events,Tst-Webrew Trade,104.16,H30,Catering (taxable benefit),5813,"Bars, Cocktail Lounges, Discotheques, Nightclubs"
31/08/2023,MB38,Aboricultural / Tree Team (Planning),Land Registry Ecom Ccc,6.00,J46,Other Expenses,9399,Government Services
31/08/2023,MB38,Aboricultural / Tree Team (Planning),Land Registry Ecom Ccc,6.00,J46,Other Expenses,9399,Government Services
31/08/2023,MB38,Aboricultural / Tree Team (Planning),Land Registry Ecom Ccc,6.00,J46,Other Expenses,9399,Government Services
31/08/2023,MB38,Aboricultural / Tree Team (Planning),Land Registry Ecom Ccc,6.00,J46,Other Expenses,9399,Government Services
31/08/2023,MB38,Aboricultural / Tree Team (Planning),Land Registry Ecom Ccc,6.00,J46,Other Expenses,9399,Government Services
31/08/2023,MB38,Aboricultural / Tree Team (Planning),Land Registry Ecom Ccc,6.00,J46,Other Expenses,9399,Government Services
31/08/2023,MJ20,Civic & Mayoral Costs,Sp Rbl Poppy Appeal,27.50,J46,Other Expenses,8398,"Organizations, Charitable and Social Service"
01/09/2023,HE01,"MD/Strategic Director A,C & H",Amznmktplace,16.10,J46,Other Expenses,5999,Miscellaneous and Specialty Retail Stores
01/09/2023,LE10,Economic Development,Squarespace Inc.,244.80,J46,Other Expenses,7372,"Computer Program, System Design"
01/09/2023,LE10,Economic Development,Www.Planning.Co,298.00,J46,Other Expenses,7399,Other Business Services
01/09/2023,MJ20,Civic & Mayoral Costs,Powerbell Services Limite,"1,527.02",G10,Vehicle Servicing & Repairs,7538,Automotive Service Shops
03/09/2023,LR10,Braywick Nature Centre,Amazon.Co.Uk*1u05w8nu4,26.40,J46,Other Expenses,5969,Other Direct Marketing-Other Direct Marketers
03/09/2023,MB06,Planning Enforcement,Land Registry Ecom Ccc,6.00,J46,Other Expenses,9399,Government Services
03/09/2023,ML15,Public Relations,Axate,2.00,A77,Professional Subscriptions,5968,Direct Marketing Continuity Subscription Merchants
04/09/2023,MB38,Aboricultural / Tree Team (Planning),Badger Trust,20.00,J46,Other Expenses,8398,"Organizations, Charitable and Social Service"
04/09/2023,MC36,Pensions Administration,Institute Of Payroll P,215.00,A70,Training - Non-Taxable Benefit,8999,Professional Services
04/09/2023,MC36,Pensions Administration,Institute Of Payroll P,215.00,A70,Training - Non-Taxable Benefit,8999,Professional Services
05/09/2023,LE10,Economic Development,Clr*www.Rbwm.Gov.Uk,228.00,J46,Other Expenses,9399,Government Services
05/09/2023,MB38,Aboricultural / Tree Team (Planning),Cieem.Net,78.00,A77,Professional Subscriptions,8398,"Organizations, Charitable and Social Service"
05/09/2023,SVHM,Homelessness,Travelodge Gb0000,98.92,K77,Client Temporary Accommodation,3615,Travelodge
06/09/2023,MB06,Planning Enforcement,Land Registry Ecom Ccc,6.00,J46,Other Expenses,9399,Government Services
07/09/2023,LE10,Economic Development,Clr*www.Rbwm.Gov.Uk,171.00,J46,Other Expenses,9399,Government Services
07/09/2023,MB06,Planning Enforcement,Land Registry Ecom Ccc,6.00,J46,Other Expenses,9399,Government Services
08/09/2023,LB18,Libraries-Maidenhead,Homebase Ltd,12.00,H10,Equipment Purchase,5200,Home Supply Warehouse Stores
08/09/2023,MA51,Democratic Services,Zoom.Us 888-799-9666,6.70,H92,Software,4814,Telecommunication Services
08/09/2023,MB38,Aboricultural / Tree Team (Planning),Land Registry Ecom Ccc,6.00,J46,Other Expenses,9399,Government Services
08/09/2023,SVHM,Homelessness,Travelodge Gb0000,777.12,K77,Client Temporary Accommodation,3615,Travelodge
10/09/2023,EC26,"Information, Advice and Support Service",Eig*constantcontact.Com,21.60,H80,Communication,5968,Direct Marketing Continuity Subscription Merchants
12/09/2023,LB18,Libraries-Maidenhead,Amznmktplace,7.99,H10,Equipment Purchase,5999,Miscellaneous and Specialty Retail Stores
12/09/2023,MT49,Community Warden Scheme,Amznmktplace,19.99,H10,Equipment Purchase,5999,Miscellaneous and Specialty Retail Stores
12/09/2023,PT70,Road Safety,B & Q 1262,25.50,H10,Equipment Purchase,5200,Home Supply Warehouse Stores
13/09/2023,LB18,Libraries-Maidenhead,Auraonlinel,114.75,H10,Equipment Purchase,5999,Miscellaneous and Specialty Retail Stores
13/09/2023,MC36,Pensions Administration,Gwr Maidenhead To,53.40,G39,Client Public Transport,4112,Passenger Railways
14/09/2023,EC26,"Information, Advice and Support Service",Sainsburys S/mkts,1.03,H35,Refreshments,5411,Grocery Stores and Supermarkets
14/09/2023,MB06,Planning Enforcement,Land Registry Ecom Ccc,6.00,J46,Other Expenses,9399,Government Services
14/09/2023,MB06,Planning Enforcement,Land Registry Ecom Ccc,6.00,J46,Other Expenses,9399,Government Services
14/09/2023,MJ20,Civic & Mayoral Costs,Specialised Canvas,344.04,J46,Other Expenses,5399,Miscellaneous General Merchandise
14/09/2023,ML15,Public Relations,Contstant Contact,196.00,A77,Professional Subscriptions,5968,Direct Marketing Continuity Subscription Merchants
15/09/2023,LR10,Braywick Nature Centre,Angling Active,331.94,H10,Equipment Purchase,5941,Sporting Goods Stores
15/09/2023,MB38,Aboricultural / Tree Team (Planning),Cieem.Net,202.00,A77,Professional Subscriptions,8398,"Organizations, Charitable and Social Service"
15/09/2023,MJ20,Civic & Mayoral Costs,Tesco Stores 2668,35.00,J46,Other Expenses,5411,Grocery Stores and Supermarkets
17/09/2023,LR10,Braywick Nature Centre,Amznmktplace,43.98,H10,Equipment Purchase,5999,Miscellaneous and Specialty Retail Stores
17/09/2023,LR10,Braywick Nature Centre,Amznmktplace,82.97,H10,Equipment Purchase,5999,Miscellaneous and Specialty Retail Stores
18/09/2023,HE01,"MD/Strategic Director A,C & H",Tesco Stores 5135,51.09,J46,Other Expenses,5411,Grocery Stores and Supermarkets
18/09/2023,MB06,Planning Enforcement,Land Registry Ecom Ccc,6.00,J46,Other Expenses,9399,Government Services
18/09/2023,NA11,Town Hall- Operations,Chairclinic,990.00,H10,Equipment Purchase,7392,"Consulting, Management, and PR Services"
19/09/2023,LB18,Libraries-Maidenhead,Amazon Prime*141h059m4,8.99,J46,Other Expenses,5968,Direct Marketing Continuity Subscription Merchants
19/09/2023,LB82,S E Library Management,Se Online Web,53.30,G40,Staff Public Transport,4112,Passenger Railways
19/09/2023,LT80,Guildhall-Meetings & Events,Laithwaites Wine,"1,131.60",H30,Catering (taxable benefit),5921,"Package Stores, Beer, Wine, Liquor"
19/09/2023,MY74,Learning and Development,Westminster Insight,430.92,A70,Training - Non-Taxable Benefit,5815,"Digital Goods - Media, Books, Movies, Music"
20/09/2023,LR10,Braywick Nature Centre,Vmo*vimeo Plus+ Monthl,9.54,J46,Other Expenses,5968,Direct Marketing Continuity Subscription Merchants
20/09/2023,LR10,Braywick Nature Centre,Paypal *cieh,64.80,J46,Other Expenses,8398,"Organizations, Charitable and Social Service"
20/09/2023,MJ20,Civic & Mayoral Costs,Sq *wycombe Wanderers Foo,696.00,J46,Other Expenses,7929,"Bands, Orchestras, and Miscellaneous Entertainers"
20/09/2023,SFRG,Social Fund Reform Grant,Paypal *argosdirect,92.95,H16,Furniture,5331,Variety Stores
20/09/2023,SFRG,Social Fund Reform Grant,Www.Argos.Co.Uk,97.95,H16,Furniture,5311,Department Stores
20/09/2023,SFRG,Social Fund Reform Grant,Paypal *argosdirect,430.00,H16,Furniture,5331,Variety Stores
22/09/2023,MA74,Digital Printing IGEN,Stationeryu,597.54,H45,Stationery,5943,"Office, School Supply, and Stationery Stores"
22/09/2023,MY74,Learning and Development,Eb *biodiversity Net G,25.00,A70,Training - Non-Taxable Benefit,7399,Other Business Services
22/09/2023,MY74,Learning and Development,Eb *biodiversity Net G,25.00,A70,Training - Non-Taxable Benefit,7399,Other Business Services
24/09/2023,MA51,Democratic Services,Zoom.Us 888-799-9666,129.93,H92,Software,4814,Telecommunication Services
26/09/2023,LB18,Libraries-Maidenhead,Amznmktplace,12.99,H10,Equipment Purchase,5999,Miscellaneous and Specialty Retail Stores
26/09/2023,MB06,Planning Enforcement,Land Registry Ecom Ccc,6.00,J46,Other Expenses,9399,Government Services
26/09/2023,MC36,Pensions Administration,Gwr Maidenhead To,15.80,G39,Client Public Transport,4112,Passenger Railways
26/09/2023,MT10,Legal Services,Amazon* 205-3425160-38,59.96,H46,Books & Publications,5399,Miscellaneous General Merchandise
27/09/2023,ML15,Public Relations,Amznmktplace,30.72,H10,Equipment Purchase,5999,Miscellaneous and Specialty Retail Stores
27/09/2023,SFRG,Social Fund Reform Grant,Paypal *argosdirect,-210.00,H16,Furniture,5331,Variety Stores
02/10/2023,LR10,Braywick Nature Centre,Amazon* 204-0897564-96,22.93,H10,Equipment Purchase,5399,Miscellaneous General Merchandise
02/10/2023,LR10,Braywick Nature Centre,Lidl Gb Maidenhead,39.49,J46,Other Expenses,5411,Grocery Stores and Supermarkets
02/10/2023,LT80,Guildhall-Meetings & Events,Booker Ltd - 38603524,143.38,H30,Catering (taxable benefit),5411,Grocery Stores and Supermarkets
02/10/2023,LT80,Guildhall-Meetings & Events,Laithwaites Wine,317.20,H30,Catering (taxable benefit),5921,"Package Stores, Beer, Wine, Liquor"
02/10/2023,MB01,Centralised Stationery,Amznmktplace,15.31,H10,Equipment Purchase,5999,Miscellaneous and Specialty Retail Stores
02/10/2023,MT65,Community Safety Grant Funded,Amznmktplace,11.92,H10,Equipment Purchase,5999,Miscellaneous and Specialty Retail Stores
03/10/2023,LT80,Guildhall-Meetings & Events,Tst-Webrew Trade,122.54,H30,Catering (taxable benefit),5813,"Bars, Cocktail Lounges, Discotheques, Nightclubs"
03/10/2023,ML15,Public Relations,Axate,2.00,A77,Professional Subscriptions,5968,Direct Marketing Continuity Subscription Merchants
03/10/2023,MT65,Community Safety Grant Funded,Amznmktplace,41.34,H10,Equipment Purchase,5999,Miscellaneous and Specialty Retail Stores
03/10/2023,MT65,Community Safety Grant Funded,Amznmktplace,74.70,H10,Equipment Purchase,5999,Miscellaneous and Specialty Retail Stores
04/10/2023,LT80,Guildhall-Meetings & Events,Windsor Peascod S 4460,12.50,H31,Catering (non-taxable benefit),5411,Grocery Stores and Supermarkets
04/10/2023,LT80,Guildhall-Meetings & Events,Tst-Webrew Trade,25.92,H30,Catering (taxable benefit),5813,"Bars, Cocktail Lounges, Discotheques, Nightclubs"
04/10/2023,MB06,Planning Enforcement,Land Registry Ecom Ccc,6.00,J46,Other Expenses,9399,Government Services
04/10/2023,MB06,Planning Enforcement,Land Registry Ecom Ccc,6.00,J46,Other Expenses,9399,Government Services
04/10/2023,MH32,Parking Operations Unit,Dvla Dup V5c Agent,25.00,G11,Vehicle Supplies,9399,Government Services
05/10/2023,EC26,"Information, Advice and Support Service",Amazon.Co.Uk*ht32y3vq4,7.45,H45,Stationery,5969,Other Direct Marketing-Other Direct Marketers
05/10/2023,EC26,"Information, Advice and Support Service",Amazon.Co.Uk*ht3vb35y4,8.33,H45,Stationery,5969,Other Direct Marketing-Other Direct Marketers
05/10/2023,EC26,"Information, Advice and Support Service",Vistaprint,23.48,H45,Stationery,7399,Other Business Services
05/10/2023,MB01,Centralised Stationery,Amznmktplace,12.17,H10,Equipment Purchase,5999,Miscellaneous and Specialty Retail Stores
05/10/2023,MB06,Planning Enforcement,Land Registry Ecom Ccc,6.00,J46,Other Expenses,9399,Government Services
05/10/2023,MB06,Planning Enforcement,Land Registry Ecom Ccc,6.00,J46,Other Expenses,9399,Government Services
05/10/2023,MB06,Planning Enforcement,Land Registry Ecom Ccc,6.00,J46,Other Expenses,9399,Government Services
05/10/2023,MB06,Planning Enforcement,Land Registry Ecom Ccc,6.00,J46,Other Expenses,9399,Government Services
05/10/2023,ML15,Public Relations,Amznmktplace,-22.23,H10,Equipment Purchase,5999,Miscellaneous and Specialty Retail Stores
05/10/2023,SVHM,Homelessness,Travelodge Gb0000,130.53,K77,Client Temporary Accommodation,3615,Travelodge
06/10/2023,LR10,Braywick Nature Centre,Lidl Gb Maidenhead,10.66,J46,Other Expenses,5411,Grocery Stores and Supermarkets
06/10/2023,MJ20,Civic & Mayoral Costs,Nya*motor Fuel Ltd,6.00,J46,Other Expenses,5499,Miscellaneous Food Stores & Convenience Stores
06/10/2023,ML15,Public Relations,Amznmktplace,29.89,H10,Equipment Purchase,5999,Miscellaneous and Specialty Retail Stores
06/10/2023,SFRG,Social Fund Reform Grant,Paypal *argosdirect,-105.00,H16,Furniture,5331,Variety Stores
06/10/2023,SFRG,Social Fund Reform Grant,Paypal *argosdirect,-92.95,H16,Furniture,5331,Variety Stores
06/10/2023,SFRG,Social Fund Reform Grant,Paypal *argosdirect,90.00,H16,Furniture,5331,Variety Stores
06/10/2023,SFRG,Social Fund Reform Grant,Paypal *argosdirect,111.95,H16,Furniture,5331,Variety Stores
06/10/2023,SFRG,Social Fund Reform Grant,Currys Online,169.00,H16,Furniture,5732,Electronic Sales
06/10/2023,SFRG,Social Fund Reform Grant,Paypal *argosdirect,197.95,H16,Furniture,5331,Variety Stores
06/10/2023,SFRG,Social Fund Reform Grant,Paypal *argosdirect,325.00,H16,Furniture,5331,Variety Stores
07/10/2023,MA69,Facilities Management,Waitrose 772,13.20,H10,Equipment Purchase,5411,Grocery Stores and Supermarkets
07/10/2023,MJ20,Civic & Mayoral Costs,Esso Shoppenhanger Sstn,80.40,F40,Gas,5541,Service Stations
09/10/2023,MA87,Deputyship,Clr*royal Borough Of,22.00,H20,Client Personal Needs,9399,Government Services
09/10/2023,MB01,Centralised Stationery,Amznmktplace,9.19,H10,Equipment Purchase,5999,Miscellaneous and Specialty Retail Stores
09/10/2023,MB01,Centralised Stationery,Amznmktplace,14.98,H10,Equipment Purchase,5999,Miscellaneous and Specialty Retail Stores
09/10/2023,MT49,Community Warden Scheme,Sp Patrolstore,99.49,H10,Equipment Purchase,5399,Miscellaneous General Merchandise
10/10/2023,EC26,"Information, Advice and Support Service",Eig*constantcontact.Com,21.60,H80,Communication,5968,Direct Marketing Continuity Subscription Merchants
10/10/2023,SSAF,Supporting Afghan Families,Www.Argos.Co.Uk,83.50,H10,Equipment Purchase,5311,Department Stores
11/10/2023,LT80,Guildhall-Meetings & Events,Laithwaites Wine,-423.60,H30,Catering (taxable benefit),5921,"Package Stores, Beer, Wine, Liquor"
11/10/2023,MB06,Planning Enforcement,Land Registry Ecom Ccc,6.00,J46,Other Expenses,9399,Government Services
11/10/2023,MC36,Pensions Administration,Gwr Maidenhead To,33.00,G39,Client Public Transport,4112,Passenger Railways
12/10/2023,EC26,"Information, Advice and Support Service",Marks&spencer Plc Saca,4.25,H35,Refreshments,5411,Grocery Stores and Supermarkets
12/10/2023,LB18,Libraries-Maidenhead,Amznmktplace,15.80,J46,Other Expenses,5999,Miscellaneous and Specialty Retail Stores
12/10/2023,MB38,Aboricultural / Tree Team (Planning),Land Registry Ecom Ccc,6.00,J46,Other Expenses,9399,Government Services
13/10/2023,LB82,S E Library Management,Se Online Web,30.30,G40,Staff Public Transport,4112,Passenger Railways
14/10/2023,ML15,Public Relations,Eig*constantcontact.Com,196.00,A77,Professional Subscriptions,5968,Direct Marketing Continuity Subscription Merchants
16/10/2023,MA69,Facilities Management,Halfords 0371,23.98,H10,Equipment Purchase,5940,Bicycle Shops-Sales and Service
16/10/2023,MA69,Facilities Management,Homebase Ltd,43.20,H10,Equipment Purchase,5200,Home Supply Warehouse Stores
16/10/2023,MA69,Facilities Management,Www.Screwfix.Com,64.34,H10,Equipment Purchase,5211,Lumber & Building Materials Stores
16/10/2023,ML15,Public Relations,Premier Inn,164.69,K77,Client Temporary Accommodation,3811,Premier Inn
17/10/2023,LB82,S E Library Management,Se Strood To,57.30,G40,Staff Public Transport,4112,Passenger Railways
17/10/2023,MC36,Pensions Administration,Gwr Maidenhead To,70.00,G39,Client Public Transport,4112,Passenger Railways
18/10/2023,MB06,Planning Enforcement,Land Registry Ecom Ccc,6.00,J46,Other Expenses,9399,Government Services
18/10/2023,MJ20,Civic & Mayoral Costs,Waitrose 177,222.05,J46,Other Expenses,5411,Grocery Stores and Supermarkets
18/10/2023,MJ20,Civic & Mayoral Costs,Laithwaites Wine,776.54,J46,Other Expenses,5921,"Package Stores, Beer, Wine, Liquor"
19/10/2023,LB18,Libraries-Maidenhead,Amazon Prime*h861r4r84,8.99,J46,Other Expenses,5968,Direct Marketing Continuity Subscription Merchants
19/10/2023,LT80,Guildhall-Meetings & Events,Ocado,1.99,H30,Catering (taxable benefit),5411,Grocery Stores and Supermarkets
19/10/2023,LT80,Guildhall-Meetings & Events,Ocado,148.91,H30,Catering (taxable benefit),5411,Grocery Stores and Supermarkets
19/10/2023,MJ20,Civic & Mayoral Costs,Beaconsfield Sstp,45.90,G40,Staff Public Transport,4112,Passenger Railways
19/10/2023,MJ20,Civic & Mayoral Costs,Sq *wycombe Wanderers Foo,"1,056.00",J46,Other Expenses,7929,"Bands, Orchestras, and Miscellaneous Entertainers"
19/10/2023,MT49,Community Warden Scheme,Amazon.Co.Uk*h82qe68j4,14.99,H10,Equipment Purchase,5969,Other Direct Marketing-Other Direct Marketers
20/10/2023,LR10,Braywick Nature Centre,Vmo*vimeo Plus+ Monthl,9.54,J46,Other Expenses,5968,Direct Marketing Continuity Subscription Merchants
20/10/2023,LT80,Guildhall-Meetings & Events,Laithwaites Wine,215.00,H30,Catering (taxable benefit),5921,"Package Stores, Beer, Wine, Liquor"
20/10/2023,SVHM,Homelessness,Travelodge Gb0000,347.75,K77,Client Temporary Accommodation,3615,Travelodge
22/10/2023,LB18,Libraries-Maidenhead,Amazon.Co.Uk*h01lq5t44,12.18,H10,Equipment Purchase,5969,Other Direct Marketing-Other Direct Marketers
22/10/2023,MB01,Centralised Stationery,The Works,9.00,H45,Stationery,5310,Discount Stores
24/10/2023,LB18,Libraries-Maidenhead,Clr*www.Rbwm.Gov.Uk,21.00,J47,Events & Activities,9399,Government Services
24/10/2023,LE10,Economic Development,Canva* I03948-44581263,99.99,J46,Other Expenses,7221,Photographic Studios
24/10/2023,LR10,Braywick Nature Centre,Lidl Gb Maidenhead,16.77,J46,Other Expenses,5411,Grocery Stores and Supermarkets
24/10/2023,LR10,Braywick Nature Centre,Marks&spencer Plc,49.50,J46,Other Expenses,5411,Grocery Stores and Supermarkets
24/10/2023,MA51,Democratic Services,Zoom.Us 888-799-9666,129.93,H92,Software,4814,Telecommunication Services
24/10/2023,MB38,Aboricultural / Tree Team (Planning),Land Registry Ecom Ccc,6.00,J46,Other Expenses,9399,Government Services
27/10/2023,LR10,Braywick Nature Centre,Www.Ciria.Org,390.00,J46,Other Expenses,7399,Other Business Services
30/10/2023,LR10,Braywick Nature Centre,Marks&spencer Plc Saca,31.00,J46,Other Expenses,5411,Grocery Stores and Supermarkets
30/10/2023,MB06,Planning Enforcement,Land Registry Ecom Ccc,6.00,J46,Other Expenses,9399,Government Services
30/10/2023,MB06,Planning Enforcement,Land Registry Ecom Ccc,6.00,J46,Other Expenses,9399,Government Services
30/10/2023,MB06,Planning Enforcement,Land Registry Ecom Ccc,6.00,J46,Other Expenses,9399,Government Services
30/10/2023,MB06,Planning Enforcement,Land Registry Ecom Ccc,6.00,J46,Other Expenses,9399,Government Services
30/10/2023,MT49,Community Warden Scheme,Amznmktplace,33.48,H10,Equipment Purchase,5999,Miscellaneous and Specialty Retail Stores
31/10/2023,LB82,S E Library Management,Se Online Web,53.30,G40,Staff Public Transport,4112,Passenger Railways
31/10/2023,LR10,Braywick Nature Centre,Lidl Gb Maidenhead,17.48,J46,Other Expenses,5411,Grocery Stores and Supermarkets
31/10/2023,LT80,Guildhall-Meetings & Events,Laithwaites,562.27,H30,Catering (taxable benefit),5921,"Package Stores, Beer, Wine, Liquor"
31/10/2023,MA74,Digital Printing IGEN,Stationeryu,584.01,H45,Stationery,5943,"Office, School Supply, and Stationery Stores"
31/10/2023,MB01,Centralised Stationery,Stationeryu,134.12,H45,Stationery,5943,"Office, School Supply, and Stationery Stores"
31/10/2023,MB06,Planning Enforcement,Land Registry Ecom Ccc,6.00,J46,Other Expenses,9399,Government Services
31/10/2023,MB06,Planning Enforcement,Land Registry Ecom Ccc,6.00,J46,Other Expenses,9399,Government Services
31/10/2023,MT65,Community Safety Grant Funded,Amznmktplace,62.89,H10,Equipment Purchase,5999,Miscellaneous and Specialty Retail Stores
31/10/2023,MT65,Community Safety Grant Funded,Amznmktplace,142.00,H10,Equipment Purchase,5999,Miscellaneous and Specialty Retail Stores
01/11/2023,MC36,Pensions Administration,Gwr Maidenhead To,-11.10,G39,Client Public Transport,4112,Passenger Railways
01/11/2023,MC36,Pensions Administration,Gwr Maidenhead To,5.40,G39,Client Public Transport,4112,Passenger Railways
01/11/2023,MC36,Pensions Administration,Gwr Maidenhead To,11.10,G39,Client Public Transport,4112,Passenger Railways
01/11/2023,MC36,Pensions Administration,Gwr Maidenhead To,35.00,G39,Client Public Transport,4112,Passenger Railways
02/11/2023,LT80,Guildhall-Meetings & Events,Tst-Webrew Trade,51.84,H30,Catering (taxable benefit),5813,"Bars, Cocktail Lounges, Discotheques, Nightclubs"
02/11/2023,SSAF,Supporting Afghan Families,Discount Appliance Wareho,120.00,H16,Furniture,5722,Household Appliance Stores
03/11/2023,ML15,Public Relations,Axate,2.00,A77,Professional Subscriptions,5968,Direct Marketing Continuity Subscription Merchants
06/11/2023,MB06,Planning Enforcement,Land Registry Ecom Ccc,6.00,J46,Other Expenses,9399,Government Services
06/11/2023,MT65,Community Safety Grant Funded,Amznmktplace,17.77,H10,Equipment Purchase,5999,Miscellaneous and Specialty Retail Stores
06/11/2023,MT65,Community Safety Grant Funded,Amznmktplace,89.00,H10,Equipment Purchase,5999,Miscellaneous and Specialty Retail Stores
06/11/2023,SFRG,Social Fund Reform Grant,Paypal *argosdirect,-105.00,H16,Furniture,5331,Variety Stores
06/11/2023,SFRG,Social Fund Reform Grant,Paypal *argosdirect,-6.95,H16,Furniture,5331,Variety Stores
06/11/2023,SFRG,Social Fund Reform Grant,Www.Argos.Co.Uk,435.95,H16,Furniture,5311,Department Stores
07/11/2023,LB82,S E Library Management,Se Trains Onboard,57.30,G40,Staff Public Transport,4112,Passenger Railways
07/11/2023,LR10,Braywick Nature Centre,Tesco Stores 6092,14.30,J46,Other Expenses,5411,Grocery Stores and Supermarkets
07/11/2023,LR10,Braywick Nature Centre,Lidl Gb Maidenhead,25.08,J46,Other Expenses,5411,Grocery Stores and Supermarkets
07/11/2023,MJ20,Civic & Mayoral Costs,Tesco Stores 2668,19.50,J46,Other Expenses,5411,Grocery Stores and Supermarkets
07/11/2023,MT49,Community Warden Scheme,Amznmktplace,38.12,H10,Equipment Purchase,5999,Miscellaneous and Specialty Retail Stores
08/11/2023,MT65,Community Safety Grant Funded,Amznmktplace,7.79,H10,Equipment Purchase,5999,Miscellaneous and Specialty Retail Stores
08/11/2023,MT65,Community Safety Grant Funded,Amazon.Co.Uk*hb05n8cb4,15.98,H10,Equipment Purchase,5969,Other Direct Marketing-Other Direct Marketers
08/11/2023,MT65,Community Safety Grant Funded,Rawlins Paints,86.86,H10,Equipment Purchase,5198,"Paints, Varnishes, and Supplies"
08/11/2023,SFRG,Social Fund Reform Grant,Currys Online,334.00,H16,Furniture,5732,Electronic Sales
09/11/2023,MJ20,Civic & Mayoral Costs,Tesco Stores 2668,18.00,J46,Other Expenses,5411,Grocery Stores and Supermarkets
09/11/2023,MT65,Community Safety Grant Funded,Amznmktplace,20.01,H10,Equipment Purchase,5999,Miscellaneous and Specialty Retail Stores
10/11/2023,EC26,"Information, Advice and Support Service",Eig*constantcontact.Com,40.80,H80,Communication,5968,Direct Marketing Continuity Subscription Merchants
10/11/2023,MA30,HR Strategic,C2e871500426k Ukvi,"1,239.00",J46,Other Expenses,9399,Government Services
12/11/2023,MT65,Community Safety Grant Funded,Amznmktplace,21.92,H10,Equipment Purchase,5999,Miscellaneous and Specialty Retail Stores
12/11/2023,MT65,Community Safety Grant Funded,Amznmktplace,23.05,H10,Equipment Purchase,5999,Miscellaneous and Specialty Retail Stores
13/11/2023,LR10,Braywick Nature Centre,Co-Op Group 500603,12.25,J46,Other Expenses,5411,Grocery Stores and Supermarkets
13/11/2023,LT80,Guildhall-Meetings & Events,Laithwaites,796.95,H30,Catering (taxable benefit),5921,"Package Stores, Beer, Wine, Liquor"
13/11/2023,MB01,Centralised Stationery,Stationeryu,139.19,H45,Stationery,5943,"Office, School Supply, and Stationery Stores"
14/11/2023,MJ20,Civic & Mayoral Costs,Boots 2241,14.00,J46,Other Expenses,5912,"Drug Stores, Pharmacies"
14/11/2023,ML15,Public Relations,Eig*constantcontact.Com,196.00,A77,Professional Subscriptions,5968,Direct Marketing Continuity Subscription Merchants
15/11/2023,EC26,"Information, Advice and Support Service",Firstaid4less,15.48,H10,Equipment Purchase,5046,Other Commercial Equipment
15/11/2023,LB18,Libraries-Maidenhead,Amznmktplace,41.24,J47,Events & Activities,5999,Miscellaneous and Specialty Retail Stores
15/11/2023,LC10,Cemeteries & Churchyards,Amazon.Co.Uk*hb4ud82x4,37.32,H10,Equipment Purchase,5969,Other Direct Marketing-Other Direct Marketers
16/11/2023,EC37,PPS Independent Support,Marks&spencer Plc Saca,4.30,H10,Equipment Purchase,5411,Grocery Stores and Supermarkets
16/11/2023,LB18,Libraries-Maidenhead,Baker Ross,79.40,J47,Events & Activities,5970,"Artist Supply Stores, Craft Shops"
16/11/2023,MC36,Pensions Administration,Www.Cipfa.Org.Uk,380.00,A77,Professional Subscriptions,8699,"Organizations, Membership"
16/11/2023,MT49,Community Warden Scheme,Amazon.Co.Uk*hb6wr2i44,16.77,H10,Equipment Purchase,5969,Other Direct Marketing-Other Direct Marketers
16/11/2023,PD18,CCTV,Amazon.Co.Uk*hb16w7ia4,59.66,H10,Equipment Purchase,5969,Other Direct Marketing-Other Direct Marketers
16/11/2023,PD18,CCTV,Amazon.Co.Uk*hb5ez89j4,84.99,H10,Equipment Purchase,5969,Other Direct Marketing-Other Direct Marketers
17/11/2023,MA74,Digital Printing IGEN,Stationeryu,212.50,H45,Stationery,5943,"Office, School Supply, and Stationery Stores"
17/11/2023,MB01,Centralised Stationery,Stationeryu,116.71,H45,Stationery,5943,"Office, School Supply, and Stationery Stores"
19/11/2023,LB18,Libraries-Maidenhead,Amazon Prime*hi5bk7n94,8.99,J46,Other Expenses,5968,Direct Marketing Continuity Subscription Merchants
20/11/2023,LR10,Braywick Nature Centre,Wm Morrisons Store,4.50,J46,Other Expenses,5411,Grocery Stores and Supermarkets
20/11/2023,LR10,Braywick Nature Centre,Vmo*vimeo Plus+ Monthl,9.54,J46,Other Expenses,5968,Direct Marketing Continuity Subscription Merchants
20/11/2023,MB01,Centralised Stationery,The Works,3.00,H45,Stationery,5310,Discount Stores
21/11/2023,LB18,Libraries-Maidenhead,Wh Smith Maidenhead,7.98,H10,Equipment Purchase,5994,News Dealers and Newsstands
21/11/2023,LR10,Braywick Nature Centre,Lidl Gb Maidenhead,4.69,J46,Other Expenses,5411,Grocery Stores and Supermarkets
21/11/2023,MB01,Centralised Stationery,Poundland - 2807,10.00,H45,Stationery,5310,Discount Stores
21/11/2023,MC36,Pensions Administration,Bkg*hotel At Booking.C,106.20,K77,Client Temporary Accommodation,4722,Travel Agencies and Tour Operators
22/11/2023,EC26,"Information, Advice and Support Service",Sainsburys S/mkts,4.35,H35,Refreshments,5411,Grocery Stores and Supermarkets
22/11/2023,MA69,Facilities Management,Robert Dyas Maidenhead,19.98,H10,Equipment Purchase,5251,Hardware Stores
22/11/2023,MA69,Facilities Management,Radio Solutions,585.55,H10,Equipment Purchase,5065,Electrical Parts and Equipment
22/11/2023,MB06,Planning Enforcement,Land Registry Ecom Ccc,6.00,J46,Other Expenses,9399,Government Services
22/11/2023,MB06,Planning Enforcement,Land Registry Ecom Ccc,6.00,J46,Other Expenses,9399,Government Services
23/11/2023,LB18,Libraries-Maidenhead,Co-Op Group 500603,37.80,J47,Events & Activities,5411,Grocery Stores and Supermarkets
23/11/2023,LE10,Economic Development,Booker Ltd - 38603524,40.97,H31,Catering (non-taxable benefit),5411,Grocery Stores and Supermarkets
23/11/2023,LE10,Economic Development,Booker Ltd - 38603524,134.77,H30,Catering (taxable benefit),5411,Grocery Stores and Supermarkets
23/11/2023,LT80,Guildhall-Meetings & Events,Laithwaites Wine,308.00,H30,Catering (taxable benefit),5921,"Package Stores, Beer, Wine, Liquor"
23/11/2023,MB06,Planning Enforcement,Land Registry Ecom Ccc,6.00,J46,Other Expenses,9399,Government Services
23/11/2023,MC36,Pensions Administration,Bkg*hotel At Booking.C,116.90,K77,Client Temporary Accommodation,4722,Travel Agencies and Tour Operators
23/11/2023,MJ20,Civic & Mayoral Costs,Powerbell Services Limite,989.87,G10,Vehicle Servicing & Repairs,7538,Automotive Service Shops
23/11/2023,SFRG,Social Fund Reform Grant,Dunelm Softfurnishings,138.95,H16,Furniture,5712,"Equipment, Furniture, and Home Furnishings Stores "
23/11/2023,SFRG,Social Fund Reform Grant,Www.Argos.Co.Uk,206.95,H16,Furniture,5311,Department Stores
23/11/2023,SFRG,Social Fund Reform Grant,Www.Argos.Co.Uk,534.95,H16,Furniture,5311,Department Stores
23/11/2023,SFRG,Social Fund Reform Grant,Www.Argos.Co.Uk,534.95,H16,Furniture,5311,Department Stores
24/11/2023,LT80,Guildhall-Meetings & Events,Nisbets Ltd,103.15,H10,Equipment Purchase,5964,Direct Marketing Catalog Merchants
24/11/2023,MA51,Democratic Services,Zoom.Us 888-799-9666,129.93,H92,Software,4814,Telecommunication Services
24/11/2023,SFRG,Social Fund Reform Grant,Paypal *argosdirect,-90.00,H16,Furniture,5331,Variety Stores
24/11/2023,SFRG,Social Fund Reform Grant,Www.Argos.Co.Uk,165.95,H16,Furniture,5311,Department Stores
24/11/2023,SFRG,Social Fund Reform Grant,Www.Argos.Co.Uk,206.95,H16,Furniture,5311,Department Stores
24/11/2023,SFRG,Social Fund Reform Grant,Www.Argos.Co.Uk,206.95,H16,Furniture,5311,Department Stores
25/11/2023,LB18,Libraries-Maidenhead,Amznmktplace,11.98,J47,Events & Activities,5999,Miscellaneous and Specialty Retail Stores
25/11/2023,LB18,Libraries-Maidenhead,Amznmktplace,154.91,J47,Events & Activities,5999,Miscellaneous and Specialty Retail Stores
26/11/2023,MT65,Community Safety Grant Funded,Amazon.Co.Uk*hw3w45z04,20.31,H10,Equipment Purchase,5969,Other Direct Marketing-Other Direct Marketers
27/11/2023,MB01,Centralised Stationery,Amznmktplace,26.32,H10,Equipment Purchase,5999,Miscellaneous and Specialty Retail Stores
27/11/2023,MC36,Pensions Administration,Trainline,41.09,G39,Client Public Transport,4112,Passenger Railways
27/11/2023,MC36,Pensions Administration,Trainline,65.79,G39,Client Public Transport,4112,Passenger Railways
27/11/2023,MT10,Legal Services,Stationeryu,475.10,H45,Stationery,5943,"Office, School Supply, and Stationery Stores"
28/11/2023,LB80,Libraries-Replacement System,Contstant Contact,69.50,J46,Other Expenses,5968,Direct Marketing Continuity Subscription Merchants
29/11/2023,LB18,Libraries-Maidenhead,Sainsburys.Co.Uk,147.97,J47,Events & Activities,5411,Grocery Stores and Supermarkets
29/11/2023,MJ20,Civic & Mayoral Costs,Waitrose 177,170.81,J46,Other Expenses,5411,Grocery Stores and Supermarkets
29/11/2023,MJ20,Civic & Mayoral Costs,Laithwaites,238.80,J46,Other Expenses,5921,"Package Stores, Beer, Wine, Liquor"
30/11/2023,LB18,Libraries-Maidenhead,Amznmktplace,15.80,J46,Other Expenses,5999,Miscellaneous and Specialty Retail Stores
30/11/2023,MC36,Pensions Administration,Gwr Maidenhead To,35.00,G39,Client Public Transport,4112,Passenger Railways
30/11/2023,NA11,Town Hall- Operations,Bt Business Bill,194.16,H80,Communication,4814,Telecommunication Services
30/11/2023,SFRG,Social Fund Reform Grant,Www.Argos.Co.Uk,-200.00,H16,Furniture,5311,Department Stores
01/12/2023,LB18,Libraries-Maidenhead,Baker Ross,98.81,J47,Events & Activities,5970,"Artist Supply Stores, Craft Shops"
01/12/2023,LB70,Libraries-Stock Fund,Amznmktplace,85.89,J55,Book Stock Fund,5999,Miscellaneous and Specialty Retail Stores
03/12/2023,ML15,Public Relations,Axate,2.00,A77,Professional Subscriptions,5968,Direct Marketing Continuity Subscription Merchants
04/12/2023,LB82,S E Library Management,Se Online Web,46.20,G40,Staff Public Transport,4112,Passenger Railways
04/12/2023,MB06,Planning Enforcement,Land Registry Ecom Ccc,3.00,J46,Other Expenses,9399,Government Services
04/12/2023,MB06,Planning Enforcement,Land Registry Ecom Ccc,6.00,J46,Other Expenses,9399,Government Services
05/12/2023,LB70,Libraries-Stock Fund,Amazon.Co.Uk*ce7yo8di5,86.35,J55,Book Stock Fund,5969,Other Direct Marketing-Other Direct Marketers
05/12/2023,MA53,Mayoral & Civic,Gwr Windsor To,19.20,G39,Client Public Transport,4112,Passenger Railways
05/12/2023,MB06,Planning Enforcement,Land Registry Ecom Ccc,6.00,J46,Other Expenses,9399,Government Services
05/12/2023,SFRG,Social Fund Reform Grant,Www.Argos.Co.Uk,-200.00,H16,Furniture,5311,Department Stores
05/12/2023,SFRG,Social Fund Reform Grant,Www.Argos.Co.Uk,-6.95,H16,Furniture,5311,Department Stores
06/12/2023,MB06,Planning Enforcement,Land Registry Ecom Ccc,6.00,J46,Other Expenses,9399,Government Services
06/12/2023,MB06,Planning Enforcement,Land Registry Ecom Ccc,6.00,J46,Other Expenses,9399,Government Services
06/12/2023,MB06,Planning Enforcement,Land Registry Ecom Ccc,6.00,J46,Other Expenses,9399,Government Services
06/12/2023,MB06,Planning Enforcement,Land Registry Ecom Ccc,6.00,J46,Other Expenses,9399,Government Services
06/12/2023,MB06,Planning Enforcement,Land Registry Ecom Ccc,6.00,J46,Other Expenses,9399,Government Services
06/12/2023,MB06,Planning Enforcement,Land Registry Ecom Ccc,6.00,J46,Other Expenses,9399,Government Services
06/12/2023,MB06,Planning Enforcement,Land Registry Ecom Ccc,6.00,J46,Other Expenses,9399,Government Services
06/12/2023,MB06,Planning Enforcement,Land Registry Ecom Ccc,6.00,J46,Other Expenses,9399,Government Services
06/12/2023,MB06,Planning Enforcement,Land Registry Ecom Ccc,6.00,J46,Other Expenses,9399,Government Services
06/12/2023,MC36,Pensions Administration,Sq *crosscountry Trains,4.00,G39,Client Public Transport,5814,Quick Payment Service-Fast-Food Restaurants
06/12/2023,MC36,Pensions Administration,Sumup *kader Taxi,10.00,G40,Staff Public Transport,4121,Taxi Services
08/12/2023,LB82,S E Library Management,Se Strood Sst,57.30,G40,Staff Public Transport,4112,Passenger Railways
08/12/2023,MC36,Pensions Administration,Tfl Travel Ch,2.70,G39,Client Public Transport,4111,Local and Suburban Commuter Transportation
08/12/2023,MC36,Pensions Administration,Curb Mobility Limited,8.00,G40,Staff Public Transport,4121,Taxi Services
10/12/2023,EC26,"Information, Advice and Support Service",Eig*constantcontact.Com,21.60,H80,Communication,5968,Direct Marketing Continuity Subscription Merchants
11/12/2023,LB18,Libraries-Maidenhead,Paypal *halfords 1621.,23.58,J46,Other Expenses,5940,Bicycle Shops-Sales and Service
11/12/2023,MA69,Facilities Management,Halfords 0371,14.99,G11,Vehicle Supplies,5940,Bicycle Shops-Sales and Service
11/12/2023,MC36,Pensions Administration,Tfl Travel Ch,6.20,G40,Staff Public Transport,4111,Local and Suburban Commuter Transportation
12/12/2023,LB18,Libraries-Maidenhead,Www.Anyvan.Com,20.00,J46,Other Expenses,4214,Motor Freight Carriers
12/12/2023,LB18,Libraries-Maidenhead,Www.Anyvan.Com,76.00,J46,Other Expenses,4214,Motor Freight Carriers
12/12/2023,MT10,Legal Services,Eb *delivering Custom,80.00,A70,Training - Non-Taxable Benefit,7399,Other Business Services
12/12/2023,SFRG,Social Fund Reform Grant,Www.Argos.Co.Uk,-159.00,H16,Furniture,5311,Department Stores
12/12/2023,SFRG,Social Fund Reform Grant,Www.Argos.Co.Uk,-6.95,H16,Furniture,5311,Department Stores
13/12/2023,EC26,"Information, Advice and Support Service",Tesco Stores 4395,10.65,H35,Refreshments,5411,Grocery Stores and Supermarkets
13/12/2023,LB18,Libraries-Maidenhead,Amznmktplace,4.29,J47,Events & Activities,5999,Miscellaneous and Specialty Retail Stores
13/12/2023,LB18,Libraries-Maidenhead,Amznmktplace,7.99,J47,Events & Activities,5999,Miscellaneous and Specialty Retail Stores
13/12/2023,LB18,Libraries-Maidenhead,Amznmktplace,9.95,J47,Events & Activities,5999,Miscellaneous and Specialty Retail Stores
13/12/2023,LB18,Libraries-Maidenhead,Amznmktplace,12.99,J47,Events & Activities,5999,Miscellaneous and Specialty Retail Stores
13/12/2023,LB18,Libraries-Maidenhead,Amznmktplace,13.70,J47,Events & Activities,5999,Miscellaneous and Specialty Retail Stores
13/12/2023,LB18,Libraries-Maidenhead,Amznmktplace,13.98,J47,Events & Activities,5999,Miscellaneous and Specialty Retail Stores
13/12/2023,LB18,Libraries-Maidenhead,Amznmktplace,15.98,J47,Events & Activities,5999,Miscellaneous and Specialty Retail Stores
13/12/2023,LB18,Libraries-Maidenhead,Amznmktplace,15.99,J47,Events & Activities,5999,Miscellaneous and Specialty Retail Stores
13/12/2023,LB18,Libraries-Maidenhead,Amazon.Co.Uk*gn3l229r5,18.00,J47,Events & Activities,5969,Other Direct Marketing-Other Direct Marketers
13/12/2023,LB18,Libraries-Maidenhead,B&q Ltd,27.00,J46,Other Expenses,5211,Lumber & Building Materials Stores
13/12/2023,LB18,Libraries-Maidenhead,Amznmktplace,39.96,J47,Events & Activities,5999,Miscellaneous and Specialty Retail Stores
13/12/2023,MB01,Centralised Stationery,Robert Dyas Maidenhead,14.98,H45,Stationery,5251,Hardware Stores
13/12/2023,MB38,Aboricultural / Tree Team (Planning),Land Registry Ecom Ccc,3.00,J46,Other Expenses,9399,Government Services
13/12/2023,MJ41,Elections -Parliamentary,Amznmktplace,368.86,H10,Equipment Purchase,5999,Miscellaneous and Specialty Retail Stores
13/12/2023,MY37,Corporate I.T. - Networks,Digicert,"2,050.04",H95,IT Maintenance Charges,5734,Computer Software Stores
14/12/2023,MA69,Facilities Management,Sq *wycombe Wanderers Foo,264.00,J46,Other Expenses,7929,"Bands, Orchestras, and Miscellaneous Entertainers"
14/12/2023,ML15,Public Relations,Amazon.Co.Uk*z53de6vv5,7.26,H10,Equipment Purchase,5969,Other Direct Marketing-Other Direct Marketers
14/12/2023,ML15,Public Relations,Eig*constantcontact.Com,196.00,A77,Professional Subscriptions,5968,Direct Marketing Continuity Subscription Merchants
15/12/2023,MY37,Corporate I.T. - Networks,Foreign Exchange Fee,56.38,H95,IT Maintenance Charges,,
18/12/2023,LB18,Libraries-Maidenhead,Sainsburys.Co.Uk,-16.60,J47,Events & Activities,5411,Grocery Stores and Supermarkets
18/12/2023,LB18,Libraries-Maidenhead,Sainsburys.Co.Uk,329.61,J47,Events & Activities,5411,Grocery Stores and Supermarkets
19/12/2023,LB18,Libraries-Maidenhead,Amazon Prime*2n15l4lx5,8.99,J46,Other Expenses,5968,Direct Marketing Continuity Subscription Merchants
19/12/2023,MJ41,Elections -Parliamentary,Paypal *lgcomms2018,180.00,A70,Training - Non-Taxable Benefit,8699,"Organizations, Membership"
19/12/2023,PT70,Road Safety,Www.Gocustomclothing.Com,124.09,J01,Clothing & Uniforms,5691,Mens and Womens Clothing Stores
20/12/2023,LR10,Braywick Nature Centre,Vmo*vimeo Plus+ Monthl,9.54,J46,Other Expenses,5968,Direct Marketing Continuity Subscription Merchants
20/12/2023,LR10,Braywick Nature Centre,Www.Ciria.Org,720.00,J46,Other Expenses,7399,Other Business Services
20/12/2023,MC36,Pensions Administration,Cartridge Save,570.16,H45,Stationery,5111,"Stationery, Office Supplies and Writing Paper"
21/12/2023,LB01,LAHS-Continuing Professional Development,Eb *bics Edi For Libra,21.23,A70,Training - Non-Taxable Benefit,7399,Other Business Services
24/12/2023,MA51,Democratic Services,Zoom.Us 888-799-9666,129.93,H92,Software,4814,Telecommunication Services
03/01/2024,LB18,Libraries-Maidenhead,Amznmktplace,5.99,J47,Events & Activities,5999,Miscellaneous and Specialty Retail Stores
03/01/2024,LB18,Libraries-Maidenhead,Baker Ross,18.40,J47,Events & Activities,5970,"Artist Supply Stores, Craft Shops"
03/01/2024,LT80,Guildhall-Meetings & Events,Booker Ltd - 38603524,45.98,H31,Catering (non-taxable benefit),5411,Grocery Stores and Supermarkets
03/01/2024,LT80,Guildhall-Meetings & Events,Booker Ltd - 38603524,63.20,H30,Catering (taxable benefit),5411,Grocery Stores and Supermarkets
03/01/2024,ML15,Public Relations,Axate,2.00,A77,Professional Subscriptions,5968,Direct Marketing Continuity Subscription Merchants
03/01/2024,ML15,Public Relations,Trainline,85.44,G39,Client Public Transport,4112,Passenger Railways
04/01/2024,LB18,Libraries-Maidenhead,Amznmktplace,4.39,H10,Equipment Purchase,5999,Miscellaneous and Specialty Retail Stores
04/01/2024,LB18,Libraries-Maidenhead,Amznmktplace,26.99,H10,Equipment Purchase,5999,Miscellaneous and Specialty Retail Stores
04/01/2024,LB18,Libraries-Maidenhead,Amznmktplace,26.99,H10,Equipment Purchase,5999,Miscellaneous and Specialty Retail Stores
04/01/2024,LR10,Braywick Nature Centre,Lidl Gb Maidenhead,17.88,J46,Other Expenses,5411,Grocery Stores and Supermarkets
04/01/2024,LT80,Guildhall-Meetings & Events,Tesco Stores Plc,9.75,H31,Catering (non-taxable benefit),5411,Grocery Stores and Supermarkets
04/01/2024,MA53,Mayoral & Civic,Mace-Bearers Subs,10.00,A77,Professional Subscriptions,8641,"Associations-Civic, Social, and Fraternal"
04/01/2024,MB06,Planning Enforcement,Land Registry Ecom Ccc,6.00,J46,Other Expenses,9399,Government Services
04/01/2024,MB06,Planning Enforcement,Land Registry Ecom Ccc,6.00,J46,Other Expenses,9399,Government Services
04/01/2024,MB06,Planning Enforcement,Land Registry Ecom Ccc,6.00,J46,Other Expenses,9399,Government Services
05/01/2024,MC36,Pensions Administration,London Stock Exchange Lei,120.00,J42,Legal Fees,8999,Professional Services
05/01/2024,MJ20,Civic & Mayoral Costs,Powerbell Services Limite,206.90,G10,Vehicle Servicing & Repairs,7538,Automotive Service Shops
08/01/2024,LE10,Economic Development,Travelodge Gb0000,41.80,K77,Client Temporary Accommodation,3615,Travelodge
08/01/2024,LE10,Economic Development,Travelodge Gb0000,41.80,K77,Client Temporary Accommodation,3615,Travelodge
08/01/2024,LE10,Economic Development,Travelodge Gb0000,41.80,K77,Client Temporary Accommodation,3615,Travelodge
08/01/2024,LF10,Sustainability and Climate Strategy,Travelodge Gb0000,41.80,K77,Client Temporary Accommodation,3615,Travelodge
08/01/2024,LF10,Sustainability and Climate Strategy,Travelodge Gb0000,41.80,J46,Other Expenses,3615,Travelodge
08/01/2024,LF10,Sustainability and Climate Strategy,Travelodge Gb0000,41.80,J46,Other Expenses,3615,Travelodge
08/01/2024,LF10,Sustainability and Climate Strategy,Travelodge Gb0000,41.80,J46,Other Expenses,3615,Travelodge
08/01/2024,LF10,Sustainability and Climate Strategy,Travelodge Gb0000,41.80,K77,Client Temporary Accommodation,3615,Travelodge
08/01/2024,LF10,Sustainability and Climate Strategy,Travelodge Gb0000,41.80,J46,Other Expenses,3615,Travelodge
08/01/2024,LF10,Sustainability and Climate Strategy,Travelodge Gb0000,41.80,K77,Client Temporary Accommodation,3615,Travelodge
08/01/2024,LF10,Sustainability and Climate Strategy,Travelodge Gb0000,41.80,J46,Other Expenses,3615,Travelodge
09/01/2024,LB18,Libraries-Maidenhead,Amznmktplace,179.97,H10,Equipment Purchase,5999,Miscellaneous and Specialty Retail Stores
09/01/2024,LF10,Sustainability and Climate Strategy,Premier Inn,730.00,J46,Other Expenses,3811,Premier Inn
09/01/2024,LR10,Braywick Nature Centre,Www.Argos.Co.Uk,433.95,J46,Other Expenses,5311,Department Stores
09/01/2024,LT80,Guildhall-Meetings & Events,Windsor And Eton Brewery,78.65,H30,Catering (taxable benefit),5921,"Package Stores, Beer, Wine, Liquor"
09/01/2024,LT80,Guildhall-Meetings & Events,Laithwaites,587.28,H30,Catering (taxable benefit),5921,"Package Stores, Beer, Wine, Liquor"
09/01/2024,MJ41,Elections -Parliamentary,Amznmktplace,90.60,H10,Equipment Purchase,5999,Miscellaneous and Specialty Retail Stores
10/01/2024,EC26,"Information, Advice and Support Service",Eig*constantcontact.Com,21.60,H80,Communication,5968,Direct Marketing Continuity Subscription Merchants
10/01/2024,EC26,"Information, Advice and Support Service",Www.Weprintlanyards.Co,34.67,H10,Equipment Purchase,5947,"Card, Gift, Novelty, and Souvenir Shops"
10/01/2024,MA74,Digital Printing IGEN,Stationeryu,457.79,H45,Stationery,5943,"Office, School Supply, and Stationery Stores"
10/01/2024,MB01,Centralised Stationery,Stationeryu,6.64,H45,Stationery,5943,"Office, School Supply, and Stationery Stores"
10/01/2024,MB06,Planning Enforcement,Land Registry Ecom Ccc,6.00,J46,Other Expenses,9399,Government Services
10/01/2024,MB06,Planning Enforcement,Land Registry Ecom Ccc,6.00,J46,Other Expenses,9399,Government Services
10/01/2024,MY74,Learning and Development,Wp*edge Training Ltd,180.00,A70,Training - Non-Taxable Benefit,8999,Professional Services
10/01/2024,MY74,Learning and Development,Wp*edge Training Ltd,180.00,A70,Training - Non-Taxable Benefit,8999,Professional Services
11/01/2024,LB18,Libraries-Maidenhead,Amazon.Co.Uk*548yt08u5,34.99,H10,Equipment Purchase,5969,Other Direct Marketing-Other Direct Marketers
12/01/2024,AK81,Postage - Rechargeable,Stationeryu,954.99,H45,Stationery,5943,"Office, School Supply, and Stationery Stores"
12/01/2024,CA19,Network Hardware Replacement,Ebay O*25-11032-33402,109.03,Q05,Purchase of IT Equipment (P & R) (Capital Only),5311,Department Stores
12/01/2024,NA11,Town Hall- Operations,Stationeryu,238.62,H10,Equipment Purchase,5943,"Office, School Supply, and Stationery Stores"
12/01/2024,NA28,Refuse Collection Contract-Council Buildings,Restore Datashred,141.96,F81,Cleaning,1799,Special Trade Contractors
12/01/2024,SFRG,Social Fund Reform Grant,Paypal *argosdirect,79.95,H16,Furniture,5331,Variety Stores
12/01/2024,SFRG,Social Fund Reform Grant,Paypal *argosdirect,95.00,H16,Furniture,5331,Variety Stores
12/01/2024,SFRG,Social Fund Reform Grant,Paypal *argosdirect,99.95,H16,Furniture,5331,Variety Stores
12/01/2024,SFRG,Social Fund Reform Grant,Paypal *argosdirect,99.95,H16,Furniture,5331,Variety Stores
12/01/2024,SFRG,Social Fund Reform Grant,Paypal *argosdirect,120.00,H16,Furniture,5331,Variety Stores
12/01/2024,SFRG,Social Fund Reform Grant,Paypal *argosdirect,120.00,H16,Furniture,5331,Variety Stores
12/01/2024,SFRG,Social Fund Reform Grant,Currys Online,373.00,H16,Furniture,5732,Electronic Sales
12/01/2024,SFRG,Social Fund Reform Grant,Currys Online,438.00,H16,Furniture,5732,Electronic Sales
12/01/2024,SFRG,Social Fund Reform Grant,Currys Online,438.00,H16,Furniture,5732,Electronic Sales
14/01/2024,ML15,Public Relations,Eig*constantcontact.Com,196.00,A77,Professional Subscriptions,5968,Direct Marketing Continuity Subscription Merchants
15/01/2024,LB18,Libraries-Maidenhead,Enterprise Rent A Car,193.63,G18,Vehicle Hire Charges,3405,Enterprise Rent-A-Car
16/01/2024,MB06,Planning Enforcement,Land Registry Ecom Ccc,6.00,J46,Other Expenses,9399,Government Services
17/01/2024,LB18,Libraries-Maidenhead,Sq *chartmedia,81.50,J46,Other Expenses,5399,Miscellaneous General Merchandise
17/01/2024,MJ20,Civic & Mayoral Costs,The Zipyard,15.00,J01,Clothing & Uniforms,5697,"Alterations, Mending, Seamstresses, Tailors  "
17/01/2024,MJ20,Civic & Mayoral Costs,Gwr Maidenhead Sst,35.00,G40,Staff Public Transport,4112,Passenger Railways
18/01/2024,EC26,"Information, Advice and Support Service",Marks&spencer Plc Saca,4.25,H35,Refreshments,5411,Grocery Stores and Supermarkets
18/01/2024,LR10,Braywick Nature Centre,Halfords 0371,7.49,J46,Other Expenses,5940,Bicycle Shops-Sales and Service
18/01/2024,MB06,Planning Enforcement,Land Registry Ecom Ccc,6.00,J46,Other Expenses,9399,Government Services
18/01/2024,MC36,Pensions Administration,Tfl Travel Ch,2.70,G40,Staff Public Transport,4111,Local and Suburban Commuter Transportation
18/01/2024,MC36,Pensions Administration,Wrights Brothers,82.18,J20,Conference Fees,5812,"Eating Places, Restaurants"
18/01/2024,SVHM,Homelessness,Same Day Couriers,88.61,H10,Equipment Purchase,4214,Motor Freight Carriers
18/01/2024,SVHM,Homelessness,Trp7 Ltd,297.50,H10,Equipment Purchase,5999,Miscellaneous and Specialty Retail Stores
18/01/2024,SVHM,Homelessness,Trp7 Ltd,905.00,H10,Equipment Purchase,5999,Miscellaneous and Specialty Retail Stores
19/01/2024,LB18,Libraries-Maidenhead,Amazon Prime*ju3f10t45,8.99,J46,Other Expenses,5968,Direct Marketing Continuity Subscription Merchants
19/01/2024,LB18,Libraries-Maidenhead,Amazon.Co.Uk*uo7nm8ch5,30.83,J47,Events & Activities,5969,Other Direct Marketing-Other Direct Marketers
19/01/2024,MT10,Legal Services,Www.Wildy.Com,218.24,J46,Other Expenses,5942,Book Stores
19/01/2024,MT10,Legal Services,Www.Wildy.Com,278.10,J46,Other Expenses,5942,Book Stores
20/01/2024,LR10,Braywick Nature Centre,Vmo*vimeo Plus+ Monthl,9.54,J46,Other Expenses,5968,Direct Marketing Continuity Subscription Merchants
22/01/2024,LR10,Braywick Nature Centre,Www.Screwfix.Com,363.98,J46,Other Expenses,5211,Lumber & Building Materials Stores
22/01/2024,MC36,Pensions Administration,Tfl Travel Ch,1.75,G40,Staff Public Transport,4111,Local and Suburban Commuter Transportation
22/01/2024,PB10,Planning Development Control,The Chartered Institute O,"3,200.00",J20,Conference Fees,7011,"Hotels, Motels, Resorts"
24/01/2024,LR10,Braywick Nature Centre,Wickes Building,52.00,H10,Equipment Purchase,5211,Lumber & Building Materials Stores
24/01/2024,MA51,Democratic Services,Zoom.Us 888-799-9666,129.93,H92,Software,4814,Telecommunication Services
24/01/2024,MJ20,Civic & Mayoral Costs,Beaconsfield Sstp,34.20,G40,Staff Public Transport,4112,Passenger Railways
24/01/2024,SVHM,Homelessness,Dri*autodesk,444.00,H92,Software,5734,Computer Software Stores
25/01/2024,LB18,Libraries-Maidenhead,Amznmktplace,14.99,J46,Other Expenses,5999,Miscellaneous and Specialty Retail Stores
25/01/2024,LB80,Libraries-Replacement System,Contstant Contact,171.00,H80,Communication,5968,Direct Marketing Continuity Subscription Merchants
25/01/2024,MC36,Pensions Administration,Tfl Travel Ch,3.50,G40,Staff Public Transport,4111,Local and Suburban Commuter Transportation
26/01/2024,MC36,Pensions Administration,Tfl Travel Ch,4.45,G40,Staff Public Transport,4111,Local and Suburban Commuter Transportation
29/01/2024,MC36,Pensions Administration,Tfl Travel Ch,1.75,G40,Staff Public Transport,4111,Local and Suburban Commuter Transportation
30/01/2024,EC26,"Information, Advice and Support Service",Www.Ipsea.Org.Uk,175.00,J46,Other Expenses,8299,Other Schools and Educational Services
30/01/2024,LE10,Economic Development,Gambling Commission,400.00,J46,Other Expenses,9399,Government Services
30/01/2024,MA69,Facilities Management,Halfords 0711,11.99,J46,Other Expenses,5940,Bicycle Shops-Sales and Service
30/01/2024,MB01,Centralised Stationery,Amznmktplace,30.36,H10,Equipment Purchase,5999,Miscellaneous and Specialty Retail Stores
30/01/2024,MT65,Community Safety Grant Funded,Amazon* 204-8405623-93,184.99,H10,Equipment Purchase,5399,Miscellaneous General Merchandise
31/01/2024,EC26,"Information, Advice and Support Service",Amazon.Co.Uk*di1838uc5,13.48,H45,Stationery,5969,Other Direct Marketing-Other Direct Marketers
31/01/2024,LT80,Guildhall-Meetings & Events,Laithwaites,-26.70,H30,Catering (taxable benefit),5921,"Package Stores, Beer, Wine, Liquor"
31/01/2024,NA11,Town Hall- Operations,Homebase Ltd,39.00,H10,Equipment Purchase,5200,Home Supply Warehouse Stores
01/02/2024,SADG,Asylum Dispersal Grant,Www.Argos.Co.Uk,129.99,H10,Equipment Purchase,5311,Department Stores
02/02/2024,LT80,Guildhall-Meetings & Events,Laithwaites Wine,65.00,H30,Catering (taxable benefit),5921,"Package Stores, Beer, Wine, Liquor"
02/02/2024,LT80,Guildhall-Meetings & Events,Laithwaites Wine,812.50,H30,Catering (taxable benefit),5921,"Package Stores, Beer, Wine, Liquor"
02/02/2024,MB01,Centralised Stationery,Stationeryu,401.98,H45,Stationery,5943,"Office, School Supply, and Stationery Stores"
03/02/2024,ML15,Public Relations,Axate,2.00,A77,Professional Subscriptions,5968,Direct Marketing Continuity Subscription Merchants
05/02/2024,MB06,Planning Enforcement,Land Registry Ecom Ccc,6.00,J46,Other Expenses,9399,Government Services
05/02/2024,MB06,Planning Enforcement,Land Registry Ecom Ccc,6.00,J46,Other Expenses,9399,Government Services
06/02/2024,LR10,Braywick Nature Centre,Www.Ciria.Org,390.00,J46,Other Expenses,7399,Other Business Services
06/02/2024,LT80,Guildhall-Meetings & Events,Waitrose 772,6.30,H31,Catering (non-taxable benefit),5411,Grocery Stores and Supermarkets
06/02/2024,LT80,Guildhall-Meetings & Events,Waitrose 772,10.00,H10,Equipment Purchase,5411,Grocery Stores and Supermarkets
06/02/2024,MB06,Planning Enforcement,Land Registry Ecom Ccc,6.00,J46,Other Expenses,9399,Government Services
06/02/2024,MB06,Planning Enforcement,Land Registry Ecom Ccc,6.00,J46,Other Expenses,9399,Government Services
06/02/2024,MB06,Planning Enforcement,Land Registry Ecom Ccc,6.00,J46,Other Expenses,9399,Government Services
06/02/2024,MT10,Legal Services,Crimeline Training Ltd,192.00,J60,Professional Fees,8299,Other Schools and Educational Services
06/02/2024,PB10,Planning Development Control,C2e880300021k Ukvi,"-3,000.00",J46,Other Expenses,9399,Government Services
06/02/2024,PB10,Planning Development Control,C2e880300021k Ukvi,"3,239.00",J46,Other Expenses,9399,Government Services
07/02/2024,LB18,Libraries-Maidenhead,Post Office Counter,5.39,H70,Postage,9402,Postal Services - Government Only
07/02/2024,LB18,Libraries-Maidenhead,Amazon* 206-4657550-92,12.49,H10,Equipment Purchase,5399,Miscellaneous General Merchandise
10/02/2024,EC26,"Information, Advice and Support Service",Eig*constantcontact.Com,21.60,H80,Communication,5968,Direct Marketing Continuity Subscription Merchants
12/02/2024,LB18,Libraries-Maidenhead,Sainsburys.Co.Uk,245.48,J47,Events & Activities,5411,Grocery Stores and Supermarkets
12/02/2024,MT49,Community Warden Scheme,Amznmktplace,25.66,H10,Equipment Purchase,5999,Miscellaneous and Specialty Retail Stores
12/02/2024,MT49,Community Warden Scheme,Amazon* 202-7962834-33,29.90,H10,Equipment Purchase,5399,Miscellaneous General Merchandise
12/02/2024,PB10,Planning Development Control,The Chartered Institute O,"2,700.00",F64,Room Hire,7011,"Hotels, Motels, Resorts"
13/02/2024,LB82,S E Library Management,Lbrut Internet,67.50,H35,Refreshments,9399,Government Services
13/02/2024,MT65,Community Safety Grant Funded,Amznmktplace,137.20,H10,Equipment Purchase,5999,Miscellaneous and Specialty Retail Stores
14/02/2024,LR10,Braywick Nature Centre,Homebase Ltd,24.00,J46,Other Expenses,5200,Home Supply Warehouse Stores
14/02/2024,ML15,Public Relations,Eig*constantcontact.Com,196.00,A77,Professional Subscriptions,5968,Direct Marketing Continuity Subscription Merchants
15/02/2024,SFRG,Social Fund Reform Grant,Paypal *argosdirect,481.95,H16,Furniture,5331,Variety Stores
15/02/2024,SFRG,Social Fund Reform Grant,Paypal *argosdirect,555.00,H16,Furniture,5331,Variety Stores
16/02/2024,MJ20,Civic & Mayoral Costs,Dvla Vehicle Tax,397.50,G10,Vehicle Servicing & Repairs,9311,Tax Payments
16/02/2024,NA11,Town Hall- Operations,Bt Business Bill,166.82,H80,Communication,4814,Telecommunication Services
19/02/2024,LB18,Libraries-Maidenhead,Amazon Prime*w75g43id5,8.99,J46,Other Expenses,5968,Direct Marketing Continuity Subscription Merchants
19/02/2024,LR10,Braywick Nature Centre,Wickes Building,26.00,H10,Equipment Purchase,5211,Lumber & Building Materials Stores
20/02/2024,LR10,Braywick Nature Centre,Vmo*vimeo Plus+ Monthl,9.54,J46,Other Expenses,5968,Direct Marketing Continuity Subscription Merchants
20/02/2024,LR10,Braywick Nature Centre,Amazon* 204-8444597-42,10.99,H10,Equipment Purchase,5399,Miscellaneous General Merchandise
20/02/2024,LT80,Guildhall-Meetings & Events,Stationeryu,19.71,H45,Stationery,5943,"Office, School Supply, and Stationery Stores"
21/02/2024,EC26,"Information, Advice and Support Service",Sainsburys S/mkts,3.70,H35,Refreshments,5411,Grocery Stores and Supermarkets
21/02/2024,SFRG,Social Fund Reform Grant,Paypal *argosdirect,188.95,H16,Furniture,5331,Variety Stores
21/02/2024,SFRG,Social Fund Reform Grant,Paypal *argosdirect,223.95,H16,Furniture,5331,Variety Stores
21/02/2024,SFRG,Social Fund Reform Grant,Paypal *argosdirect,324.00,H16,Furniture,5331,Variety Stores
21/02/2024,SFRG,Social Fund Reform Grant,Paypal *argosdirect,524.00,H16,Furniture,5331,Variety Stores
21/02/2024,SFRG,Social Fund Reform Grant,Www.Argos.Co.Uk,524.00,H16,Furniture,5311,Department Stores
22/02/2024,EC26,"Information, Advice and Support Service",Sainsburys S/mkts,0.87,H35,Refreshments,5411,Grocery Stores and Supermarkets
22/02/2024,LB18,Libraries-Maidenhead,Amazon* 026-1981599-76,6.59,H10,Equipment Purchase,5399,Miscellaneous General Merchandise
22/02/2024,MJ20,Civic & Mayoral Costs,Bourne End Jewellers L,450.00,J46,Other Expenses,5944,"Clock, Jewelry, Watch, and Silverware Store"
24/02/2024,MA51,Democratic Services,Zoom.Us 888-799-9666,129.93,H92,Software,4814,Telecommunication Services
25/02/2024,LB80,Libraries-Replacement System,Contstant Contact,171.00,H80,Communication,5968,Direct Marketing Continuity Subscription Merchants
26/02/2024,MB01,Centralised Stationery,Ryman,88.98,H45,Stationery,5943,"Office, School Supply, and Stationery Stores"
26/02/2024,PB10,Planning Development Control,The Chartered Institute O,"2,700.00",J20,Conference Fees,7011,"Hotels, Motels, Resorts"
27/02/2024,LB18,Libraries-Maidenhead,Ironmongery Experts,252.00,H10,Equipment Purchase,5200,Home Supply Warehouse Stores
27/02/2024,MB06,Planning Enforcement,Land Registry Ecom Ccc,6.00,J46,Other Expenses,9399,Government Services
27/02/2024,SVHM,Homelessness,Travelodge Gb0000,81.01,K77,Client Temporary Accommodation,3615,Travelodge
28/02/2024,LB18,Libraries-Maidenhead,Hd Sunflower Ltd,15.00,J46,Other Expenses,5999,Miscellaneous and Specialty Retail Stores
28/02/2024,LB18,Libraries-Maidenhead,Amznmktplace,43.98,J46,Other Expenses,5999,Miscellaneous and Specialty Retail Stores
28/02/2024,MB06,Planning Enforcement,Land Registry Ecom Ccc,6.00,J46,Other Expenses,9399,Government Services
28/02/2024,SVHM,Homelessness,Travelodge Gb0000,75.01,K77,Client Temporary Accommodation,3615,Travelodge
29/02/2024,EC26,"Information, Advice and Support Service",Marks&spencer Plc Saca,3.25,H35,Refreshments,5411,Grocery Stores and Supermarkets
29/02/2024,MB06,Planning Enforcement,Land Registry Ecom Ccc,6.00,J46,Other Expenses,9399,Government Services
29/02/2024,MB06,Planning Enforcement,Land Registry Ecom Ccc,6.00,J46,Other Expenses,9399,Government Services
29/02/2024,SFRG,Social Fund Reform Grant,Currys Online,-45.00,H16,Furniture,5732,Electronic Sales
29/02/2024,SFRG,Social Fund Reform Grant,Www.Argos.Co.Uk,200.00,H16,Furniture,5311,Department Stores
29/02/2024,SFRG,Social Fund Reform Grant,Currys Online,344.00,H16,Furniture,5732,Electronic Sales
29/02/2024,SFRG,Social Fund Reform Grant,Currys Online,364.00,H16,Furniture,5732,Electronic Sales
29/02/2024,SFRG,Social Fund Reform Grant,B&q Marketplace,374.91,H16,Furniture,5211,Lumber & Building Materials Stores
29/02/2024,SFRG,Social Fund Reform Grant,Paypal *argosdirect,375.00,H16,Furniture,5331,Variety Stores
29/02/2024,SFRG,Social Fund Reform Grant,Paypal *argosdirect,414.95,H16,Furniture,5331,Variety Stores
04/03/2024,HE01,"MD/Strategic Director A,C & H",Ascot House Hotel Ltd,580.00,J20,Conference Fees,7011,"Hotels, Motels, Resorts"
04/03/2024,MA53,Mayoral & Civic,Beaconsfield Sstp,47.70,G39,Client Public Transport,4112,Passenger Railways
04/03/2024,PB10,Planning Development Control,The Chartered Institute O,462.00,H35,Refreshments,7011,"Hotels, Motels, Resorts"
05/03/2024,LT80,Guildhall-Meetings & Events,Robert Dyas Windsor,9.99,H10,Equipment Purchase,5251,Hardware Stores
05/03/2024,LT80,Guildhall-Meetings & Events,Booker Ltd - 38603524,22.99,H31,Catering (non-taxable benefit),5411,Grocery Stores and Supermarkets
05/03/2024,LT80,Guildhall-Meetings & Events,Booker Ltd - 38603524,74.24,H30,Catering (taxable benefit),5411,Grocery Stores and Supermarkets
05/03/2024,MB06,Planning Enforcement,Land Registry Ecom Ccc,6.00,J46,Other Expenses,9399,Government Services
05/03/2024,SFRG,Social Fund Reform Grant,Paypal *argosdirect,-330.00,H16,Furniture,5331,Variety Stores
06/03/2024,LT80,Guildhall-Meetings & Events,Stationeryu,407.67,H45,Stationery,5943,"Office, School Supply, and Stationery Stores"
07/03/2024,LR10,Braywick Nature Centre,Toolstation Uk,5.98,J46,Other Expenses,5251,Hardware Stores
07/03/2024,SVAT,Housing Policy Team Costs,Shopstuff UK Ltd,375.78,H10,Equipment Purchase,5044,"Office Supplies, Photographic, Photocopy Equipment"
07/03/2024,SVHM,Homelessness,Travelodge Gb0000,632.89,K77,Client Temporary Accommodation,3615,Travelodge
10/03/2024,EC26,"Information, Advice and Support Service",Eig*constantcontact.Com,21.60,H80,Communication,5968,Direct Marketing Continuity Subscription Merchants
11/03/2024,CD97,Cycling Action,Amazon* 204-4031823-86,970.24,Q04,Purchase of Equipment (P & R) (Capital Only),5399,Miscellaneous General Merchandise
11/03/2024,LB82,S E Library Management,Se Online Web,57.50,G40,Staff Public Transport,4112,Passenger Railways
11/03/2024,LR10,Braywick Nature Centre,Homebase Ltd,15.50,J46,Other Expenses,5200,Home Supply Warehouse Stores
11/03/2024,MT49,Community Warden Scheme,Amazon* 202-3143049-24,0.88,H10,Equipment Purchase,5399,Miscellaneous General Merchandise
11/03/2024,MT49,Community Warden Scheme,Amazon* 202-3143049-24,24.91,H10,Equipment Purchase,5399,Miscellaneous General Merchandise
11/03/2024,MT65,Community Safety Grant Funded,Amazon.Co.Uk*ox6sw6kd5,21.27,H10,Equipment Purchase,5969,Other Direct Marketing-Other Direct Marketers
11/03/2024,MT65,Community Safety Grant Funded,Amazon* 204-5523710-85,24.99,H10,Equipment Purchase,5399,Miscellaneous General Merchandise
12/03/2024,LT80,Guildhall-Meetings & Events,Majestic Wine,219.70,H30,Catering (taxable benefit),5921,"Package Stores, Beer, Wine, Liquor"
12/03/2024,MB06,Planning Enforcement,Land Registry Ecom Ccc,6.00,J46,Other Expenses,9399,Government Services
13/03/2024,EC26,"Information, Advice and Support Service",Sainsburys S/mkts,14.19,H35,Refreshments,5411,Grocery Stores and Supermarkets
13/03/2024,LB82,S E Library Management,Se Strood Sst,61.80,G40,Staff Public Transport,4112,Passenger Railways
13/03/2024,LR10,Braywick Nature Centre,Homebase Ltd,13.75,H10,Equipment Purchase,5200,Home Supply Warehouse Stores
13/03/2024,LR10,Braywick Nature Centre,E Pardoe & Son,79.00,J46,Other Expenses,7251,"Hat Cleaning Shops, Shoe Repair Shops, Shoe Shine "
14/03/2024,LB18,Libraries-Maidenhead,Www.Beaucare.Com,54.76,F21,Health & Safety,8099,"Health Practitioners, Medical Services"
14/03/2024,MB01,Centralised Stationery,Stationeryu,186.87,H45,Stationery,5943,"Office, School Supply, and Stationery Stores"
14/03/2024,ML15,Public Relations,Eig*constantcontact.Com,196.00,A77,Professional Subscriptions,5968,Direct Marketing Continuity Subscription Merchants
14/03/2024,PB10,Planning Development Control,The Chartered Institute O,"1,600.00",J42,Legal Fees,7011,"Hotels, Motels, Resorts"
15/03/2024,LB18,Libraries-Maidenhead,Amazon* 204-0612653-18,458.40,H10,Equipment Purchase,5399,Miscellaneous General Merchandise
18/03/2024,LT80,Guildhall-Meetings & Events,Stressfreeprint,28.47,J46,Other Expenses,5399,Miscellaneous General Merchandise
18/03/2024,NA11,Town Hall- Operations,Booker Ltd - 38603524,61.96,H31,Catering (non-taxable benefit),5411,Grocery Stores and Supermarkets
18/03/2024,NA11,Town Hall- Operations,Booker Ltd - 38603524,72.44,H30,Catering (taxable benefit),5411,Grocery Stores and Supermarkets
19/03/2024,LB18,Libraries-Maidenhead,Amazon Prime*9572e4x85,8.99,J46,Other Expenses,5968,Direct Marketing Continuity Subscription Merchants
19/03/2024,LR10,Braywick Nature Centre,Vmo*vimeo Plus+ Monthl,9.54,E92,Educational Visits,5968,Direct Marketing Continuity Subscription Merchants
19/03/2024,LT50,Tourism Support,Contest-App.Co,180.00,J46,Other Expenses,5045,"Computers, Computer Peripheral Equipment, Software"
19/03/2024,PT60,Transport Policy & Planning,C2e884500637h Ukvi,"3,739.00",A70,Training - Non-Taxable Benefit,9399,Government Services
19/03/2024,PT60,Transport Policy & Planning,C2e884500670n Ukvi,"3,739.00",J46,Other Expenses,9399,Government Services
20/03/2024,MB06,Planning Enforcement,Land Registry Ecom Ccc,6.00,J46,Other Expenses,9399,Government Services
20/03/2024,MB06,Planning Enforcement,Land Registry Ecom Ccc,6.00,J46,Other Expenses,9399,Government Services
20/03/2024,MB06,Planning Enforcement,Land Registry Ecom Ccc,6.00,J46,Other Expenses,9399,Government Services
20/03/2024,ML15,Public Relations,Amazon.Co.Uk*m33597za5,11.99,H22,Materials,5969,Other Direct Marketing-Other Direct Marketers
20/03/2024,PQ41,Burial of the Dead,Clr*www.Rbwm.Gov.Uk,11.00,J46,Other Expenses,9399,Government Services
21/03/2024,LT71,Tourism - VIC Information Windsor,Royal Mail Online Shop,117.50,J46,Other Expenses,9402,Postal Services - Government Only
21/03/2024,PB10,Planning Development Control,The Chartered Institute O,74.90,J42,Legal Fees,7011,"Hotels, Motels, Resorts"
22/03/2024,MB06,Planning Enforcement,Land Registry Ecom Ccc,6.00,J46,Other Expenses,9399,Government Services
24/03/2024,MA51,Democratic Services,Zoom.Us 888-799-9666,116.94,H92,Software,4814,Telecommunication Services
24/03/2024,MJ20,Civic & Mayoral Costs,Parking-Pound Ln,1.50,G11,Vehicle Supplies,7523,Automobile Parking Lots and Garages
24/03/2024,MJ20,Civic & Mayoral Costs,Halfords 0711,20.99,G11,Vehicle Supplies,5940,Bicycle Shops-Sales and Service
25/03/2024,LB80,Libraries-Replacement System,Contstant Contact,171.00,H80,Communication,5968,Direct Marketing Continuity Subscription Merchants
26/03/2024,LB18,Libraries-Maidenhead,Post Office Counter,9.19,H70,Postage,9402,Postal Services - Government Only
26/03/2024,LB18,Libraries-Maidenhead,Amazon* 204-2476097-69,17.99,F21,Health & Safety,5399,Miscellaneous General Merchandise
26/03/2024,MT65,Community Safety Grant Funded,Amazon.Co.Uk*2j07u8xg5,20.82,H10,Equipment Purchase,5969,Other Direct Marketing-Other Direct Marketers
27/03/2024,LR10,Braywick Nature Centre,Www.Screwfix.Com,24.99,H10,Equipment Purchase,5211,Lumber & Building Materials Stores
27/03/2024,MC36,Pensions Administration,Cartridge Save,567.82,H45,Stationery,5111,"Stationery, Office Supplies and Writing Paper"
28/03/2024,LE10,Economic Development,Facebk 88ftyzfvp2,50.00,J46,Other Expenses,7311,Advertising Services
28/03/2024,LE10,Economic Development,Facebk 662hh2yvp2,100.00,J46,Other Expenses,7311,Advertising Services
28/03/2024,LR10,Braywick Nature Centre,Amazon* 204-4032109-58,6.99,H10,Equipment Purchase,5399,Miscellaneous General Merchandise
28/03/2024,MT10,Legal Services,Www.Barprofessionaltra,61.99,J60,Professional Fees,8111,"Attorneys, Legal Services"
28/03/2024,MT10,Legal Services,Www.Barprofessionaltra,98.01,J60,Professional Fees,8111,"Attorneys, Legal Services"
28/03/2024,MT10,Legal Services,Www.Barprofessionaltra,291.00,J60,Professional Fees,8111,"Attorneys, Legal Services"
28/03/2024,SVHM,Homelessness,Travelodge Gb0000,589.92,K77,Client Temporary Accommodation,3615,Travelodge
